{"text_format":"1","workbook":"xlsx","n_sheets":3,"sheets":["ورقة1","ورقة2","ورقة3"],"not_rendered":{"charts":0,"images":0,"macros":1,"external_links":0,"defined_names":0,"comments":0,"pivot_tables":0},"unopened":[],"bounds":{"document_bytes":16777216,"sheet_cells":100000,"rows_first":2000,"rows_last":500,"rows_between":2000,"halvings":0,"cell_chars":16384,"cell_head_chars":4096},"cells_cut":0,"cells_raw":0,"read":"whole","date_system":"1900"}

{"sheet":"ورقة1","index":0,"n_rows":4,"n_cols":2,"rows_kept":4,"cut":false,"hidden":true,"merged":[]}
["اسم المستخدم","كلمة المرور"]
["محمد",123]
["احمد",1230]
["سليم","سليم"]

{"sheet":"ورقة2","index":1,"n_rows":1005,"n_cols":6,"rows_kept":1005,"cut":false,"hidden":false,"merged":[[0,3,0,5],[0,2,1,2],[0,0,1,1]]}
["مؤسسة / ",null,"حركة الصندوق","الاجمالى"]
[null,null,null,{"$f":"D1005","v":0},{"$f":"E1005","v":0},{"$f":"D2-E2","v":0}]
["م","التاريخ","البيان","القبض","الصرف","الرصيد"]
[null,null,null,null,null,0]
[null,null,null,null,null,{"$f":"F4+الجدول1[[#This Row],[القبض]]-E5","v":0}]
[null,null,null,null,null,{"$f":"F5+الجدول1[[#This Row],[القبض]]-E6","v":0}]
[null,null,null,null,null,{"$f":"F6+الجدول1[[#This Row],[القبض]]-E7","v":0}]
[null,null,null,null,null,{"$f":"F7+الجدول1[[#This Row],[القبض]]-E8","v":0}]
[null,null,null,null,null,{"$f":"F8+الجدول1[[#This Row],[القبض]]-E9","v":0}]
[null,null,null,null,null,{"$f":"F9+الجدول1[[#This Row],[القبض]]-E10","v":0}]
[null,null,null,null,null,{"$f":"F10+الجدول1[[#This Row],[القبض]]-E11","v":0}]
[null,null,null,null,null,{"$f":"F11+الجدول1[[#This Row],[القبض]]-E12","v":0}]
[null,null,null,null,null,{"$f":"F12+الجدول1[[#This Row],[القبض]]-E13","v":0}]
[null,null,null,null,null,{"$f":"F13+الجدول1[[#This Row],[القبض]]-E14","v":0}]
[null,null,null,null,null,{"$f":"F14+الجدول1[[#This Row],[القبض]]-E15","v":0}]
[null,null,null,null,null,{"$f":"F15+الجدول1[[#This Row],[القبض]]-E16","v":0}]
[null,null,null,null,null,{"$f":"F16+الجدول1[[#This Row],[القبض]]-E17","v":0}]
[null,null,null,null,null,{"$f":"F17+الجدول1[[#This Row],[القبض]]-E18","v":0}]
[null,null,null,null,null,{"$f":"F18+الجدول1[[#This Row],[القبض]]-E19","v":0}]
[null,null,null,null,null,{"$f":"F19+الجدول1[[#This Row],[القبض]]-E20","v":0}]
[null,null,null,null,null,{"$f":"F20+الجدول1[[#This Row],[القبض]]-E21","v":0}]
[null,null,null,null,null,{"$f":"F21+الجدول1[[#This Row],[القبض]]-E22","v":0}]
[null,null,null,null,null,{"$f":"F22+الجدول1[[#This Row],[القبض]]-E23","v":0}]
[null,null,null,null,null,{"$f":"F23+الجدول1[[#This Row],[القبض]]-E24","v":0}]
[null,null,null,null,null,{"$f":"F24+الجدول1[[#This Row],[القبض]]-E25","v":0}]
[null,null,null,null,null,{"$f":"F25+الجدول1[[#This Row],[القبض]]-E26","v":0}]
[null,null,null,null,null,{"$f":"F26+الجدول1[[#This Row],[القبض]]-E27","v":0}]
[null,null,null,null,null,{"$f":"F27+الجدول1[[#This Row],[القبض]]-E28","v":0}]
[null,null,null,null,null,{"$f":"F28+الجدول1[[#This Row],[القبض]]-E29","v":0}]
[null,null,null,null,null,{"$f":"F29+الجدول1[[#This Row],[القبض]]-E30","v":0}]
[null,null,null,null,null,{"$f":"F30+الجدول1[[#This Row],[القبض]]-E31","v":0}]
[null,null,null,null,null,{"$f":"F31+الجدول1[[#This Row],[القبض]]-E32","v":0}]
[null,null,null,null,null,{"$f":"F32+الجدول1[[#This Row],[القبض]]-E33","v":0}]
[null,null,null,null,null,{"$f":"F33+الجدول1[[#This Row],[القبض]]-E34","v":0}]
[null,null,null,null,null,{"$f":"F34+الجدول1[[#This Row],[القبض]]-E35","v":0}]
[null,null,null,null,null,{"$f":"F35+الجدول1[[#This Row],[القبض]]-E36","v":0}]
[null,null,null,null,null,{"$f":"F36+الجدول1[[#This Row],[القبض]]-E37","v":0}]
[null,null,null,null,null,{"$f":"F37+الجدول1[[#This Row],[القبض]]-E38","v":0}]
[null,null,null,null,null,{"$f":"F38+الجدول1[[#This Row],[القبض]]-E39","v":0}]
[null,null,null,null,null,{"$f":"F39+الجدول1[[#This Row],[القبض]]-E40","v":0}]
[null,null,null,null,null,{"$f":"F40+الجدول1[[#This Row],[القبض]]-E41","v":0}]
[null,null,null,null,null,{"$f":"F41+الجدول1[[#This Row],[القبض]]-E42","v":0}]
[null,null,null,null,null,{"$f":"F42+الجدول1[[#This Row],[القبض]]-E43","v":0}]
[null,null,null,null,null,{"$f":"F43+الجدول1[[#This Row],[القبض]]-E44","v":0}]
[null,null,null,null,null,{"$f":"F44+الجدول1[[#This Row],[القبض]]-E45","v":0}]
[null,null,null,null,null,{"$f":"F45+الجدول1[[#This Row],[القبض]]-E46","v":0}]
[null,null,null,null,null,{"$f":"F46+الجدول1[[#This Row],[القبض]]-E47","v":0}]
[null,null,null,null,null,{"$f":"F47+الجدول1[[#This Row],[القبض]]-E48","v":0}]
[null,null,null,null,null,{"$f":"F48+الجدول1[[#This Row],[القبض]]-E49","v":0}]
[null,null,null,null,null,{"$f":"F49+الجدول1[[#This Row],[القبض]]-E50","v":0}]
[null,null,null,null,null,{"$f":"F50+الجدول1[[#This Row],[القبض]]-E51","v":0}]
[null,null,null,null,null,{"$f":"F51+الجدول1[[#This Row],[القبض]]-E52","v":0}]
[null,null,null,null,null,{"$f":"F52+الجدول1[[#This Row],[القبض]]-E53","v":0}]
[null,null,null,null,null,{"$f":"F53+الجدول1[[#This Row],[القبض]]-E54","v":0}]
[null,null,null,null,null,{"$f":"F54+الجدول1[[#This Row],[القبض]]-E55","v":0}]
[null,null,null,null,null,{"$f":"F55+الجدول1[[#This Row],[القبض]]-E56","v":0}]
[null,null,null,null,null,{"$f":"F56+الجدول1[[#This Row],[القبض]]-E57","v":0}]
[null,null,null,null,null,{"$f":"F57+الجدول1[[#This Row],[القبض]]-E58","v":0}]
[null,null,null,null,null,{"$f":"F58+الجدول1[[#This Row],[القبض]]-E59","v":0}]
[null,null,null,null,null,{"$f":"F59+الجدول1[[#This Row],[القبض]]-E60","v":0}]
[null,null,null,null,null,{"$f":"F60+الجدول1[[#This Row],[القبض]]-E61","v":0}]
[null,null,null,null,null,{"$f":"F61+الجدول1[[#This Row],[القبض]]-E62","v":0}]
[null,null,null,null,null,{"$f":"F62+الجدول1[[#This Row],[القبض]]-E63","v":0}]
[null,null,null,null,null,{"$f":"F63+الجدول1[[#This Row],[القبض]]-E64","v":0}]
[null,null,null,null,null,{"$f":"F64+الجدول1[[#This Row],[القبض]]-E65","v":0}]
[null,null,null,null,null,{"$f":"F65+الجدول1[[#This Row],[القبض]]-E66","v":0}]
[null,null,null,null,null,{"$f":"F66+الجدول1[[#This Row],[القبض]]-E67","v":0}]
[null,null,null,null,null,{"$f":"F67+الجدول1[[#This Row],[القبض]]-E68","v":0}]
[null,null,null,null,null,{"$f":"F68+الجدول1[[#This Row],[القبض]]-E69","v":0}]
[null,null,null,null,null,{"$f":"F69+الجدول1[[#This Row],[القبض]]-E70","v":0}]
[null,null,null,null,null,{"$f":"F70+الجدول1[[#This Row],[القبض]]-E71","v":0}]
[null,null,null,null,null,{"$f":"F71+الجدول1[[#This Row],[القبض]]-E72","v":0}]
[null,null,null,null,null,{"$f":"F72+الجدول1[[#This Row],[القبض]]-E73","v":0}]
[null,null,null,null,null,{"$f":"F73+الجدول1[[#This Row],[القبض]]-E74","v":0}]
[null,null,null,null,null,{"$f":"F74+الجدول1[[#This Row],[القبض]]-E75","v":0}]
[null,null,null,null,null,{"$f":"F75+الجدول1[[#This Row],[القبض]]-E76","v":0}]
[null,null,null,null,null,{"$f":"F76+الجدول1[[#This Row],[القبض]]-E77","v":0}]
[null,null,null,null,null,{"$f":"F77+الجدول1[[#This Row],[القبض]]-E78","v":0}]
[null,null,null,null,null,{"$f":"F78+الجدول1[[#This Row],[القبض]]-E79","v":0}]
[null,null,null,null,null,{"$f":"F79+الجدول1[[#This Row],[القبض]]-E80","v":0}]
[null,null,null,null,null,{"$f":"F80+الجدول1[[#This Row],[القبض]]-E81","v":0}]
[null,null,null,null,null,{"$f":"F81+الجدول1[[#This Row],[القبض]]-E82","v":0}]
[null,null,null,null,null,{"$f":"F82+الجدول1[[#This Row],[القبض]]-E83","v":0}]
[null,null,null,null,null,{"$f":"F83+الجدول1[[#This Row],[القبض]]-E84","v":0}]
[null,null,null,null,null,{"$f":"F84+الجدول1[[#This Row],[القبض]]-E85","v":0}]
[null,null,null,null,null,{"$f":"F85+الجدول1[[#This Row],[القبض]]-E86","v":0}]
[null,null,null,null,null,{"$f":"F86+الجدول1[[#This Row],[القبض]]-E87","v":0}]
[null,null,null,null,null,{"$f":"F87+الجدول1[[#This Row],[القبض]]-E88","v":0}]
[null,null,null,null,null,{"$f":"F88+الجدول1[[#This Row],[القبض]]-E89","v":0}]
[null,null,null,null,null,{"$f":"F89+الجدول1[[#This Row],[القبض]]-E90","v":0}]
[null,null,null,null,null,{"$f":"F90+الجدول1[[#This Row],[القبض]]-E91","v":0}]
[null,null,null,null,null,{"$f":"F91+الجدول1[[#This Row],[القبض]]-E92","v":0}]
[null,null,null,null,null,{"$f":"F92+الجدول1[[#This Row],[القبض]]-E93","v":0}]
[null,null,null,null,null,{"$f":"F93+الجدول1[[#This Row],[القبض]]-E94","v":0}]
[null,null,null,null,null,{"$f":"F94+الجدول1[[#This Row],[القبض]]-E95","v":0}]
[null,null,null,null,null,{"$f":"F95+الجدول1[[#This Row],[القبض]]-E96","v":0}]
[null,null,null,null,null,{"$f":"F96+الجدول1[[#This Row],[القبض]]-E97","v":0}]
[null,null,null,null,null,{"$f":"F97+الجدول1[[#This Row],[القبض]]-E98","v":0}]
[null,null,null,null,null,{"$f":"F98+الجدول1[[#This Row],[القبض]]-E99","v":0}]
[null,null,null,null,null,{"$f":"F99+الجدول1[[#This Row],[القبض]]-E100","v":0}]
[null,null,null,null,null,{"$f":"F100+الجدول1[[#This Row],[القبض]]-E101","v":0}]
[null,null,null,null,null,{"$f":"F101+الجدول1[[#This Row],[القبض]]-E102","v":0}]
[null,null,null,null,null,{"$f":"F102+الجدول1[[#This Row],[القبض]]-E103","v":0}]
[null,null,null,null,null,{"$f":"F103+الجدول1[[#This Row],[القبض]]-E104","v":0}]
[null,null,null,null,null,{"$f":"F104+الجدول1[[#This Row],[القبض]]-E105","v":0}]
[null,null,null,null,null,{"$f":"F105+الجدول1[[#This Row],[القبض]]-E106","v":0}]
[null,null,null,null,null,{"$f":"F106+الجدول1[[#This Row],[القبض]]-E107","v":0}]
[null,null,null,null,null,{"$f":"F107+الجدول1[[#This Row],[القبض]]-E108","v":0}]
[null,null,null,null,null,{"$f":"F108+الجدول1[[#This Row],[القبض]]-E109","v":0}]
[null,null,null,null,null,{"$f":"F109+الجدول1[[#This Row],[القبض]]-E110","v":0}]
[null,null,null,null,null,{"$f":"F110+الجدول1[[#This Row],[القبض]]-E111","v":0}]
[null,null,null,null,null,{"$f":"F111+الجدول1[[#This Row],[القبض]]-E112","v":0}]
[null,null,null,null,null,{"$f":"F112+الجدول1[[#This Row],[القبض]]-E113","v":0}]
[null,null,null,null,null,{"$f":"F113+الجدول1[[#This Row],[القبض]]-E114","v":0}]
[null,null,null,null,null,{"$f":"F114+الجدول1[[#This Row],[القبض]]-E115","v":0}]
[null,null,null,null,null,{"$f":"F115+الجدول1[[#This Row],[القبض]]-E116","v":0}]
[null,null,null,null,null,{"$f":"F116+الجدول1[[#This Row],[القبض]]-E117","v":0}]
[null,null,null,null,null,{"$f":"F117+الجدول1[[#This Row],[القبض]]-E118","v":0}]
[null,null,null,null,null,{"$f":"F118+الجدول1[[#This Row],[القبض]]-E119","v":0}]
[null,null,null,null,null,{"$f":"F119+الجدول1[[#This Row],[القبض]]-E120","v":0}]
[null,null,null,null,null,{"$f":"F120+الجدول1[[#This Row],[القبض]]-E121","v":0}]
[null,null,null,null,null,{"$f":"F121+الجدول1[[#This Row],[القبض]]-E122","v":0}]
[null,null,null,null,null,{"$f":"F122+الجدول1[[#This Row],[القبض]]-E123","v":0}]
[null,null,null,null,null,{"$f":"F123+الجدول1[[#This Row],[القبض]]-E124","v":0}]
[null,null,null,null,null,{"$f":"F124+الجدول1[[#This Row],[القبض]]-E125","v":0}]
[null,null,null,null,null,{"$f":"F125+الجدول1[[#This Row],[القبض]]-E126","v":0}]
[null,null,null,null,null,{"$f":"F126+الجدول1[[#This Row],[القبض]]-E127","v":0}]
[null,null,null,null,null,{"$f":"F127+الجدول1[[#This Row],[القبض]]-E128","v":0}]
[null,null,null,null,null,{"$f":"F128+الجدول1[[#This Row],[القبض]]-E129","v":0}]
[null,null,null,null,null,{"$f":"F129+الجدول1[[#This Row],[القبض]]-E130","v":0}]
[null,null,null,null,null,{"$f":"F130+الجدول1[[#This Row],[القبض]]-E131","v":0}]
[null,null,null,null,null,{"$f":"F131+الجدول1[[#This Row],[القبض]]-E132","v":0}]
[null,null,null,null,null,{"$f":"F132+الجدول1[[#This Row],[القبض]]-E133","v":0}]
[null,null,null,null,null,{"$f":"F133+الجدول1[[#This Row],[القبض]]-E134","v":0}]
[null,null,null,null,null,{"$f":"F134+الجدول1[[#This Row],[القبض]]-E135","v":0}]
[null,null,null,null,null,{"$f":"F135+الجدول1[[#This Row],[القبض]]-E136","v":0}]
[null,null,null,null,null,{"$f":"F136+الجدول1[[#This Row],[القبض]]-E137","v":0}]
[null,null,null,null,null,{"$f":"F137+الجدول1[[#This Row],[القبض]]-E138","v":0}]
[null,null,null,null,null,{"$f":"F138+الجدول1[[#This Row],[القبض]]-E139","v":0}]
[null,null,null,null,null,{"$f":"F139+الجدول1[[#This Row],[القبض]]-E140","v":0}]
[null,null,null,null,null,{"$f":"F140+الجدول1[[#This Row],[القبض]]-E141","v":0}]
[null,null,null,null,null,{"$f":"F141+الجدول1[[#This Row],[القبض]]-E142","v":0}]
[null,null,null,null,null,{"$f":"F142+الجدول1[[#This Row],[القبض]]-E143","v":0}]
[null,null,null,null,null,{"$f":"F143+الجدول1[[#This Row],[القبض]]-E144","v":0}]
[null,null,null,null,null,{"$f":"F144+الجدول1[[#This Row],[القبض]]-E145","v":0}]
[null,null,null,null,null,{"$f":"F145+الجدول1[[#This Row],[القبض]]-E146","v":0}]
[null,null,null,null,null,{"$f":"F146+الجدول1[[#This Row],[القبض]]-E147","v":0}]
[null,null,null,null,null,{"$f":"F147+الجدول1[[#This Row],[القبض]]-E148","v":0}]
[null,null,null,null,null,{"$f":"F148+الجدول1[[#This Row],[القبض]]-E149","v":0}]
[null,null,null,null,null,{"$f":"F149+الجدول1[[#This Row],[القبض]]-E150","v":0}]
[null,null,null,null,null,{"$f":"F150+الجدول1[[#This Row],[القبض]]-E151","v":0}]
[null,null,null,null,null,{"$f":"F151+الجدول1[[#This Row],[القبض]]-E152","v":0}]
[null,null,null,null,null,{"$f":"F152+الجدول1[[#This Row],[القبض]]-E153","v":0}]
[null,null,null,null,null,{"$f":"F153+الجدول1[[#This Row],[القبض]]-E154","v":0}]
[null,null,null,null,null,{"$f":"F154+الجدول1[[#This Row],[القبض]]-E155","v":0}]
[null,null,null,null,null,{"$f":"F155+الجدول1[[#This Row],[القبض]]-E156","v":0}]
[null,null,null,null,null,{"$f":"F156+الجدول1[[#This Row],[القبض]]-E157","v":0}]
[null,null,null,null,null,{"$f":"F157+الجدول1[[#This Row],[القبض]]-E158","v":0}]
[null,null,null,null,null,{"$f":"F158+الجدول1[[#This Row],[القبض]]-E159","v":0}]
[null,null,null,null,null,{"$f":"F159+الجدول1[[#This Row],[القبض]]-E160","v":0}]
[null,null,null,null,null,{"$f":"F160+الجدول1[[#This Row],[القبض]]-E161","v":0}]
[null,null,null,null,null,{"$f":"F161+الجدول1[[#This Row],[القبض]]-E162","v":0}]
[null,null,null,null,null,{"$f":"F162+الجدول1[[#This Row],[القبض]]-E163","v":0}]
[null,null,null,null,null,{"$f":"F163+الجدول1[[#This Row],[القبض]]-E164","v":0}]
[null,null,null,null,null,{"$f":"F164+الجدول1[[#This Row],[القبض]]-E165","v":0}]
[null,null,null,null,null,{"$f":"F165+الجدول1[[#This Row],[القبض]]-E166","v":0}]
[null,null,null,null,null,{"$f":"F166+الجدول1[[#This Row],[القبض]]-E167","v":0}]
[null,null,null,null,null,{"$f":"F167+الجدول1[[#This Row],[القبض]]-E168","v":0}]
[null,null,null,null,null,{"$f":"F168+الجدول1[[#This Row],[القبض]]-E169","v":0}]
[null,null,null,null,null,{"$f":"F169+الجدول1[[#This Row],[القبض]]-E170","v":0}]
[null,null,null,null,null,{"$f":"F170+الجدول1[[#This Row],[القبض]]-E171","v":0}]
[null,null,null,null,null,{"$f":"F171+الجدول1[[#This Row],[القبض]]-E172","v":0}]
[null,null,null,null,null,{"$f":"F172+الجدول1[[#This Row],[القبض]]-E173","v":0}]
[null,null,null,null,null,{"$f":"F173+الجدول1[[#This Row],[القبض]]-E174","v":0}]
[null,null,null,null,null,{"$f":"F174+الجدول1[[#This Row],[القبض]]-E175","v":0}]
[null,null,null,null,null,{"$f":"F175+الجدول1[[#This Row],[القبض]]-E176","v":0}]
[null,null,null,null,null,{"$f":"F176+الجدول1[[#This Row],[القبض]]-E177","v":0}]
[null,null,null,null,null,{"$f":"F177+الجدول1[[#This Row],[القبض]]-E178","v":0}]
[null,null,null,null,null,{"$f":"F178+الجدول1[[#This Row],[القبض]]-E179","v":0}]
[null,null,null,null,null,{"$f":"F179+الجدول1[[#This Row],[القبض]]-E180","v":0}]
[null,null,null,null,null,{"$f":"F180+الجدول1[[#This Row],[القبض]]-E181","v":0}]
[null,null,null,null,null,{"$f":"F181+الجدول1[[#This Row],[القبض]]-E182","v":0}]
[null,null,null,null,null,{"$f":"F182+الجدول1[[#This Row],[القبض]]-E183","v":0}]
[null,null,null,null,null,{"$f":"F183+الجدول1[[#This Row],[القبض]]-E184","v":0}]
[null,null,null,null,null,{"$f":"F184+الجدول1[[#This Row],[القبض]]-E185","v":0}]
[null,null,null,null,null,{"$f":"F185+الجدول1[[#This Row],[القبض]]-E186","v":0}]
[null,null,null,null,null,{"$f":"F186+الجدول1[[#This Row],[القبض]]-E187","v":0}]
[null,null,null,null,null,{"$f":"F187+الجدول1[[#This Row],[القبض]]-E188","v":0}]
[null,null,null,null,null,{"$f":"F188+الجدول1[[#This Row],[القبض]]-E189","v":0}]
[null,null,null,null,null,{"$f":"F189+الجدول1[[#This Row],[القبض]]-E190","v":0}]
[null,null,null,null,null,{"$f":"F190+الجدول1[[#This Row],[القبض]]-E191","v":0}]
[null,null,null,null,null,{"$f":"F191+الجدول1[[#This Row],[القبض]]-E192","v":0}]
[null,null,null,null,null,{"$f":"F192+الجدول1[[#This Row],[القبض]]-E193","v":0}]
[null,null,null,null,null,{"$f":"F193+الجدول1[[#This Row],[القبض]]-E194","v":0}]
[null,null,null,null,null,{"$f":"F194+الجدول1[[#This Row],[القبض]]-E195","v":0}]
[null,null,null,null,null,{"$f":"F195+الجدول1[[#This Row],[القبض]]-E196","v":0}]
[null,null,null,null,null,{"$f":"F196+الجدول1[[#This Row],[القبض]]-E197","v":0}]
[null,null,null,null,null,{"$f":"F197+الجدول1[[#This Row],[القبض]]-E198","v":0}]
[null,null,null,null,null,{"$f":"F198+الجدول1[[#This Row],[القبض]]-E199","v":0}]
[null,null,null,null,null,{"$f":"F199+الجدول1[[#This Row],[القبض]]-E200","v":0}]
[null,null,null,null,null,{"$f":"F200+الجدول1[[#This Row],[القبض]]-E201","v":0}]
[null,null,null,null,null,{"$f":"F201+الجدول1[[#This Row],[القبض]]-E202","v":0}]
[null,null,null,null,null,{"$f":"F202+الجدول1[[#This Row],[القبض]]-E203","v":0}]
[null,null,null,null,null,{"$f":"F203+الجدول1[[#This Row],[القبض]]-E204","v":0}]
[null,null,null,null,null,{"$f":"F204+الجدول1[[#This Row],[القبض]]-E205","v":0}]
[null,null,null,null,null,{"$f":"F205+الجدول1[[#This Row],[القبض]]-E206","v":0}]
[null,null,null,null,null,{"$f":"F206+الجدول1[[#This Row],[القبض]]-E207","v":0}]
[null,null,null,null,null,{"$f":"F207+الجدول1[[#This Row],[القبض]]-E208","v":0}]
[null,null,null,null,null,{"$f":"F208+الجدول1[[#This Row],[القبض]]-E209","v":0}]
[null,null,null,null,null,{"$f":"F209+الجدول1[[#This Row],[القبض]]-E210","v":0}]
[null,null,null,null,null,{"$f":"F210+الجدول1[[#This Row],[القبض]]-E211","v":0}]
[null,null,null,null,null,{"$f":"F211+الجدول1[[#This Row],[القبض]]-E212","v":0}]
[null,null,null,null,null,{"$f":"F212+الجدول1[[#This Row],[القبض]]-E213","v":0}]
[null,null,null,null,null,{"$f":"F213+الجدول1[[#This Row],[القبض]]-E214","v":0}]
[null,null,null,null,null,{"$f":"F214+الجدول1[[#This Row],[القبض]]-E215","v":0}]
[null,null,null,null,null,{"$f":"F215+الجدول1[[#This Row],[القبض]]-E216","v":0}]
[null,null,null,null,null,{"$f":"F216+الجدول1[[#This Row],[القبض]]-E217","v":0}]
[null,null,null,null,null,{"$f":"F217+الجدول1[[#This Row],[القبض]]-E218","v":0}]
[null,null,null,null,null,{"$f":"F218+الجدول1[[#This Row],[القبض]]-E219","v":0}]
[null,null,null,null,null,{"$f":"F219+الجدول1[[#This Row],[القبض]]-E220","v":0}]
[null,null,null,null,null,{"$f":"F220+الجدول1[[#This Row],[القبض]]-E221","v":0}]
[null,null,null,null,null,{"$f":"F221+الجدول1[[#This Row],[القبض]]-E222","v":0}]
[null,null,null,null,null,{"$f":"F222+الجدول1[[#This Row],[القبض]]-E223","v":0}]
[null,null,null,null,null,{"$f":"F223+الجدول1[[#This Row],[القبض]]-E224","v":0}]
[null,null,null,null,null,{"$f":"F224+الجدول1[[#This Row],[القبض]]-E225","v":0}]
[null,null,null,null,null,{"$f":"F225+الجدول1[[#This Row],[القبض]]-E226","v":0}]
[null,null,null,null,null,{"$f":"F226+الجدول1[[#This Row],[القبض]]-E227","v":0}]
[null,null,null,null,null,{"$f":"F227+الجدول1[[#This Row],[القبض]]-E228","v":0}]
[null,null,null,null,null,{"$f":"F228+الجدول1[[#This Row],[القبض]]-E229","v":0}]
[null,null,null,null,null,{"$f":"F229+الجدول1[[#This Row],[القبض]]-E230","v":0}]
[null,null,null,null,null,{"$f":"F230+الجدول1[[#This Row],[القبض]]-E231","v":0}]
[null,null,null,null,null,{"$f":"F231+الجدول1[[#This Row],[القبض]]-E232","v":0}]
[null,null,null,null,null,{"$f":"F232+الجدول1[[#This Row],[القبض]]-E233","v":0}]
[null,null,null,null,null,{"$f":"F233+الجدول1[[#This Row],[القبض]]-E234","v":0}]
[null,null,null,null,null,{"$f":"F234+الجدول1[[#This Row],[القبض]]-E235","v":0}]
[null,null,null,null,null,{"$f":"F235+الجدول1[[#This Row],[القبض]]-E236","v":0}]
[null,null,null,null,null,{"$f":"F236+الجدول1[[#This Row],[القبض]]-E237","v":0}]
[null,null,null,null,null,{"$f":"F237+الجدول1[[#This Row],[القبض]]-E238","v":0}]
[null,null,null,null,null,{"$f":"F238+الجدول1[[#This Row],[القبض]]-E239","v":0}]
[null,null,null,null,null,{"$f":"F239+الجدول1[[#This Row],[القبض]]-E240","v":0}]
[null,null,null,null,null,{"$f":"F240+الجدول1[[#This Row],[القبض]]-E241","v":0}]
[null,null,null,null,null,{"$f":"F241+الجدول1[[#This Row],[القبض]]-E242","v":0}]
[null,null,null,null,null,{"$f":"F242+الجدول1[[#This Row],[القبض]]-E243","v":0}]
[null,null,null,null,null,{"$f":"F243+الجدول1[[#This Row],[القبض]]-E244","v":0}]
[null,null,null,null,null,{"$f":"F244+الجدول1[[#This Row],[القبض]]-E245","v":0}]
[null,null,null,null,null,{"$f":"F245+الجدول1[[#This Row],[القبض]]-E246","v":0}]
[null,null,null,null,null,{"$f":"F246+الجدول1[[#This Row],[القبض]]-E247","v":0}]
[null,null,null,null,null,{"$f":"F247+الجدول1[[#This Row],[القبض]]-E248","v":0}]
[null,null,null,null,null,{"$f":"F248+الجدول1[[#This Row],[القبض]]-E249","v":0}]
[null,null,null,null,null,{"$f":"F249+الجدول1[[#This Row],[القبض]]-E250","v":0}]
[null,null,null,null,null,{"$f":"F250+الجدول1[[#This Row],[القبض]]-E251","v":0}]
[null,null,null,null,null,{"$f":"F251+الجدول1[[#This Row],[القبض]]-E252","v":0}]
[null,null,null,null,null,{"$f":"F252+الجدول1[[#This Row],[القبض]]-E253","v":0}]
[null,null,null,null,null,{"$f":"F253+الجدول1[[#This Row],[القبض]]-E254","v":0}]
[null,null,null,null,null,{"$f":"F254+الجدول1[[#This Row],[القبض]]-E255","v":0}]
[null,null,null,null,null,{"$f":"F255+الجدول1[[#This Row],[القبض]]-E256","v":0}]
[null,null,null,null,null,{"$f":"F256+الجدول1[[#This Row],[القبض]]-E257","v":0}]
[null,null,null,null,null,{"$f":"F257+الجدول1[[#This Row],[القبض]]-E258","v":0}]
[null,null,null,null,null,{"$f":"F258+الجدول1[[#This Row],[القبض]]-E259","v":0}]
[null,null,null,null,null,{"$f":"F259+الجدول1[[#This Row],[القبض]]-E260","v":0}]
[null,null,null,null,null,{"$f":"F260+الجدول1[[#This Row],[القبض]]-E261","v":0}]
[null,null,null,null,null,{"$f":"F261+الجدول1[[#This Row],[القبض]]-E262","v":0}]
[null,null,null,null,null,{"$f":"F262+الجدول1[[#This Row],[القبض]]-E263","v":0}]
[null,null,null,null,null,{"$f":"F263+الجدول1[[#This Row],[القبض]]-E264","v":0}]
[null,null,null,null,null,{"$f":"F264+الجدول1[[#This Row],[القبض]]-E265","v":0}]
[null,null,null,null,null,{"$f":"F265+الجدول1[[#This Row],[القبض]]-E266","v":0}]
[null,null,null,null,null,{"$f":"F266+الجدول1[[#This Row],[القبض]]-E267","v":0}]
[null,null,null,null,null,{"$f":"F267+الجدول1[[#This Row],[القبض]]-E268","v":0}]
[null,null,null,null,null,{"$f":"F268+الجدول1[[#This Row],[القبض]]-E269","v":0}]
[null,null,null,null,null,{"$f":"F269+الجدول1[[#This Row],[القبض]]-E270","v":0}]
[null,null,null,null,null,{"$f":"F270+الجدول1[[#This Row],[القبض]]-E271","v":0}]
[null,null,null,null,null,{"$f":"F271+الجدول1[[#This Row],[القبض]]-E272","v":0}]
[null,null,null,null,null,{"$f":"F272+الجدول1[[#This Row],[القبض]]-E273","v":0}]
[null,null,null,null,null,{"$f":"F273+الجدول1[[#This Row],[القبض]]-E274","v":0}]
[null,null,null,null,null,{"$f":"F274+الجدول1[[#This Row],[القبض]]-E275","v":0}]
[null,null,null,null,null,{"$f":"F275+الجدول1[[#This Row],[القبض]]-E276","v":0}]
[null,null,null,null,null,{"$f":"F276+الجدول1[[#This Row],[القبض]]-E277","v":0}]
[null,null,null,null,null,{"$f":"F277+الجدول1[[#This Row],[القبض]]-E278","v":0}]
[null,null,null,null,null,{"$f":"F278+الجدول1[[#This Row],[القبض]]-E279","v":0}]
[null,null,null,null,null,{"$f":"F279+الجدول1[[#This Row],[القبض]]-E280","v":0}]
[null,null,null,null,null,{"$f":"F280+الجدول1[[#This Row],[القبض]]-E281","v":0}]
[null,null,null,null,null,{"$f":"F281+الجدول1[[#This Row],[القبض]]-E282","v":0}]
[null,null,null,null,null,{"$f":"F282+الجدول1[[#This Row],[القبض]]-E283","v":0}]
[null,null,null,null,null,{"$f":"F283+الجدول1[[#This Row],[القبض]]-E284","v":0}]
[null,null,null,null,null,{"$f":"F284+الجدول1[[#This Row],[القبض]]-E285","v":0}]
[null,null,null,null,null,{"$f":"F285+الجدول1[[#This Row],[القبض]]-E286","v":0}]
[null,null,null,null,null,{"$f":"F286+الجدول1[[#This Row],[القبض]]-E287","v":0}]
[null,null,null,null,null,{"$f":"F287+الجدول1[[#This Row],[القبض]]-E288","v":0}]
[null,null,null,null,null,{"$f":"F288+الجدول1[[#This Row],[القبض]]-E289","v":0}]
[null,null,null,null,null,{"$f":"F289+الجدول1[[#This Row],[القبض]]-E290","v":0}]
[null,null,null,null,null,{"$f":"F290+الجدول1[[#This Row],[القبض]]-E291","v":0}]
[null,null,null,null,null,{"$f":"F291+الجدول1[[#This Row],[القبض]]-E292","v":0}]
[null,null,null,null,null,{"$f":"F292+الجدول1[[#This Row],[القبض]]-E293","v":0}]
[null,null,null,null,null,{"$f":"F293+الجدول1[[#This Row],[القبض]]-E294","v":0}]
[null,null,null,null,null,{"$f":"F294+الجدول1[[#This Row],[القبض]]-E295","v":0}]
[null,null,null,null,null,{"$f":"F295+الجدول1[[#This Row],[القبض]]-E296","v":0}]
[null,null,null,null,null,{"$f":"F296+الجدول1[[#This Row],[القبض]]-E297","v":0}]
[null,null,null,null,null,{"$f":"F297+الجدول1[[#This Row],[القبض]]-E298","v":0}]
[null,null,null,null,null,{"$f":"F298+الجدول1[[#This Row],[القبض]]-E299","v":0}]
[null,null,null,null,null,{"$f":"F299+الجدول1[[#This Row],[القبض]]-E300","v":0}]
[null,null,null,null,null,{"$f":"F300+الجدول1[[#This Row],[القبض]]-E301","v":0}]
[null,null,null,null,null,{"$f":"F301+الجدول1[[#This Row],[القبض]]-E302","v":0}]
[null,null,null,null,null,{"$f":"F302+الجدول1[[#This Row],[القبض]]-E303","v":0}]
[null,null,null,null,null,{"$f":"F303+الجدول1[[#This Row],[القبض]]-E304","v":0}]
[null,null,null,null,null,{"$f":"F304+الجدول1[[#This Row],[القبض]]-E305","v":0}]
[null,null,null,null,null,{"$f":"F305+الجدول1[[#This Row],[القبض]]-E306","v":0}]
[null,null,null,null,null,{"$f":"F306+الجدول1[[#This Row],[القبض]]-E307","v":0}]
[null,null,null,null,null,{"$f":"F307+الجدول1[[#This Row],[القبض]]-E308","v":0}]
[null,null,null,null,null,{"$f":"F308+الجدول1[[#This Row],[القبض]]-E309","v":0}]
[null,null,null,null,null,{"$f":"F309+الجدول1[[#This Row],[القبض]]-E310","v":0}]
[null,null,null,null,null,{"$f":"F310+الجدول1[[#This Row],[القبض]]-E311","v":0}]
[null,null,null,null,null,{"$f":"F311+الجدول1[[#This Row],[القبض]]-E312","v":0}]
[null,null,null,null,null,{"$f":"F312+الجدول1[[#This Row],[القبض]]-E313","v":0}]
[null,null,null,null,null,{"$f":"F313+الجدول1[[#This Row],[القبض]]-E314","v":0}]
[null,null,null,null,null,{"$f":"F314+الجدول1[[#This Row],[القبض]]-E315","v":0}]
[null,null,null,null,null,{"$f":"F315+الجدول1[[#This Row],[القبض]]-E316","v":0}]
[null,null,null,null,null,{"$f":"F316+الجدول1[[#This Row],[القبض]]-E317","v":0}]
[null,null,null,null,null,{"$f":"F317+الجدول1[[#This Row],[القبض]]-E318","v":0}]
[null,null,null,null,null,{"$f":"F318+الجدول1[[#This Row],[القبض]]-E319","v":0}]
[null,null,null,null,null,{"$f":"F319+الجدول1[[#This Row],[القبض]]-E320","v":0}]
[null,null,null,null,null,{"$f":"F320+الجدول1[[#This Row],[القبض]]-E321","v":0}]
[null,null,null,null,null,{"$f":"F321+الجدول1[[#This Row],[القبض]]-E322","v":0}]
[null,null,null,null,null,{"$f":"F322+الجدول1[[#This Row],[القبض]]-E323","v":0}]
[null,null,null,null,null,{"$f":"F323+الجدول1[[#This Row],[القبض]]-E324","v":0}]
[null,null,null,null,null,{"$f":"F324+الجدول1[[#This Row],[القبض]]-E325","v":0}]
[null,null,null,null,null,{"$f":"F325+الجدول1[[#This Row],[القبض]]-E326","v":0}]
[null,null,null,null,null,{"$f":"F326+الجدول1[[#This Row],[القبض]]-E327","v":0}]
[null,null,null,null,null,{"$f":"F327+الجدول1[[#This Row],[القبض]]-E328","v":0}]
[null,null,null,null,null,{"$f":"F328+الجدول1[[#This Row],[القبض]]-E329","v":0}]
[null,null,null,null,null,{"$f":"F329+الجدول1[[#This Row],[القبض]]-E330","v":0}]
[null,null,null,null,null,{"$f":"F330+الجدول1[[#This Row],[القبض]]-E331","v":0}]
[null,null,null,null,null,{"$f":"F331+الجدول1[[#This Row],[القبض]]-E332","v":0}]
[null,null,null,null,null,{"$f":"F332+الجدول1[[#This Row],[القبض]]-E333","v":0}]
[null,null,null,null,null,{"$f":"F333+الجدول1[[#This Row],[القبض]]-E334","v":0}]
[null,null,null,null,null,{"$f":"F334+الجدول1[[#This Row],[القبض]]-E335","v":0}]
[null,null,null,null,null,{"$f":"F335+الجدول1[[#This Row],[القبض]]-E336","v":0}]
[null,null,null,null,null,{"$f":"F336+الجدول1[[#This Row],[القبض]]-E337","v":0}]
[null,null,null,null,null,{"$f":"F337+الجدول1[[#This Row],[القبض]]-E338","v":0}]
[null,null,null,null,null,{"$f":"F338+الجدول1[[#This Row],[القبض]]-E339","v":0}]
[null,null,null,null,null,{"$f":"F339+الجدول1[[#This Row],[القبض]]-E340","v":0}]
[null,null,null,null,null,{"$f":"F340+الجدول1[[#This Row],[القبض]]-E341","v":0}]
[null,null,null,null,null,{"$f":"F341+الجدول1[[#This Row],[القبض]]-E342","v":0}]
[null,null,null,null,null,{"$f":"F342+الجدول1[[#This Row],[القبض]]-E343","v":0}]
[null,null,null,null,null,{"$f":"F343+الجدول1[[#This Row],[القبض]]-E344","v":0}]
[null,null,null,null,null,{"$f":"F344+الجدول1[[#This Row],[القبض]]-E345","v":0}]
[null,null,null,null,null,{"$f":"F345+الجدول1[[#This Row],[القبض]]-E346","v":0}]
[null,null,null,null,null,{"$f":"F346+الجدول1[[#This Row],[القبض]]-E347","v":0}]
[null,null,null,null,null,{"$f":"F347+الجدول1[[#This Row],[القبض]]-E348","v":0}]
[null,null,null,null,null,{"$f":"F348+الجدول1[[#This Row],[القبض]]-E349","v":0}]
[null,null,null,null,null,{"$f":"F349+الجدول1[[#This Row],[القبض]]-E350","v":0}]
[null,null,null,null,null,{"$f":"F350+الجدول1[[#This Row],[القبض]]-E351","v":0}]
[null,null,null,null,null,{"$f":"F351+الجدول1[[#This Row],[القبض]]-E352","v":0}]
[null,null,null,null,null,{"$f":"F352+الجدول1[[#This Row],[القبض]]-E353","v":0}]
[null,null,null,null,null,{"$f":"F353+الجدول1[[#This Row],[القبض]]-E354","v":0}]
[null,null,null,null,null,{"$f":"F354+الجدول1[[#This Row],[القبض]]-E355","v":0}]
[null,null,null,null,null,{"$f":"F355+الجدول1[[#This Row],[القبض]]-E356","v":0}]
[null,null,null,null,null,{"$f":"F356+الجدول1[[#This Row],[القبض]]-E357","v":0}]
[null,null,null,null,null,{"$f":"F357+الجدول1[[#This Row],[القبض]]-E358","v":0}]
[null,null,null,null,null,{"$f":"F358+الجدول1[[#This Row],[القبض]]-E359","v":0}]
[null,null,null,null,null,{"$f":"F359+الجدول1[[#This Row],[القبض]]-E360","v":0}]
[null,null,null,null,null,{"$f":"F360+الجدول1[[#This Row],[القبض]]-E361","v":0}]
[null,null,null,null,null,{"$f":"F361+الجدول1[[#This Row],[القبض]]-E362","v":0}]
[null,null,null,null,null,{"$f":"F362+الجدول1[[#This Row],[القبض]]-E363","v":0}]
[null,null,null,null,null,{"$f":"F363+الجدول1[[#This Row],[القبض]]-E364","v":0}]
[null,null,null,null,null,{"$f":"F364+الجدول1[[#This Row],[القبض]]-E365","v":0}]
[null,null,null,null,null,{"$f":"F365+الجدول1[[#This Row],[القبض]]-E366","v":0}]
[null,null,null,null,null,{"$f":"F366+الجدول1[[#This Row],[القبض]]-E367","v":0}]
[null,null,null,null,null,{"$f":"F367+الجدول1[[#This Row],[القبض]]-E368","v":0}]
[null,null,null,null,null,{"$f":"F368+الجدول1[[#This Row],[القبض]]-E369","v":0}]
[null,null,null,null,null,{"$f":"F369+الجدول1[[#This Row],[القبض]]-E370","v":0}]
[null,null,null,null,null,{"$f":"F370+الجدول1[[#This Row],[القبض]]-E371","v":0}]
[null,null,null,null,null,{"$f":"F371+الجدول1[[#This Row],[القبض]]-E372","v":0}]
[null,null,null,null,null,{"$f":"F372+الجدول1[[#This Row],[القبض]]-E373","v":0}]
[null,null,null,null,null,{"$f":"F373+الجدول1[[#This Row],[القبض]]-E374","v":0}]
[null,null,null,null,null,{"$f":"F374+الجدول1[[#This Row],[القبض]]-E375","v":0}]
[null,null,null,null,null,{"$f":"F375+الجدول1[[#This Row],[القبض]]-E376","v":0}]
[null,null,null,null,null,{"$f":"F376+الجدول1[[#This Row],[القبض]]-E377","v":0}]
[null,null,null,null,null,{"$f":"F377+الجدول1[[#This Row],[القبض]]-E378","v":0}]
[null,null,null,null,null,{"$f":"F378+الجدول1[[#This Row],[القبض]]-E379","v":0}]
[null,null,null,null,null,{"$f":"F379+الجدول1[[#This Row],[القبض]]-E380","v":0}]
[null,null,null,null,null,{"$f":"F380+الجدول1[[#This Row],[القبض]]-E381","v":0}]
[null,null,null,null,null,{"$f":"F381+الجدول1[[#This Row],[القبض]]-E382","v":0}]
[null,null,null,null,null,{"$f":"F382+الجدول1[[#This Row],[القبض]]-E383","v":0}]
[null,null,null,null,null,{"$f":"F383+الجدول1[[#This Row],[القبض]]-E384","v":0}]
[null,null,null,null,null,{"$f":"F384+الجدول1[[#This Row],[القبض]]-E385","v":0}]
[null,null,null,null,null,{"$f":"F385+الجدول1[[#This Row],[القبض]]-E386","v":0}]
[null,null,null,null,null,{"$f":"F386+الجدول1[[#This Row],[القبض]]-E387","v":0}]
[null,null,null,null,null,{"$f":"F387+الجدول1[[#This Row],[القبض]]-E388","v":0}]
[null,null,null,null,null,{"$f":"F388+الجدول1[[#This Row],[القبض]]-E389","v":0}]
[null,null,null,null,null,{"$f":"F389+الجدول1[[#This Row],[القبض]]-E390","v":0}]
[null,null,null,null,null,{"$f":"F390+الجدول1[[#This Row],[القبض]]-E391","v":0}]
[null,null,null,null,null,{"$f":"F391+الجدول1[[#This Row],[القبض]]-E392","v":0}]
[null,null,null,null,null,{"$f":"F392+الجدول1[[#This Row],[القبض]]-E393","v":0}]
[null,null,null,null,null,{"$f":"F393+الجدول1[[#This Row],[القبض]]-E394","v":0}]
[null,null,null,null,null,{"$f":"F394+الجدول1[[#This Row],[القبض]]-E395","v":0}]
[null,null,null,null,null,{"$f":"F395+الجدول1[[#This Row],[القبض]]-E396","v":0}]
[null,null,null,null,null,{"$f":"F396+الجدول1[[#This Row],[القبض]]-E397","v":0}]
[null,null,null,null,null,{"$f":"F397+الجدول1[[#This Row],[القبض]]-E398","v":0}]
[null,null,null,null,null,{"$f":"F398+الجدول1[[#This Row],[القبض]]-E399","v":0}]
[null,null,null,null,null,{"$f":"F399+الجدول1[[#This Row],[القبض]]-E400","v":0}]
[null,null,null,null,null,{"$f":"F400+الجدول1[[#This Row],[القبض]]-E401","v":0}]
[null,null,null,null,null,{"$f":"F401+الجدول1[[#This Row],[القبض]]-E402","v":0}]
[null,null,null,null,null,{"$f":"F402+الجدول1[[#This Row],[القبض]]-E403","v":0}]
[null,null,null,null,null,{"$f":"F403+الجدول1[[#This Row],[القبض]]-E404","v":0}]
[null,null,null,null,null,{"$f":"F404+الجدول1[[#This Row],[القبض]]-E405","v":0}]
[null,null,null,null,null,{"$f":"F405+الجدول1[[#This Row],[القبض]]-E406","v":0}]
[null,null,null,null,null,{"$f":"F406+الجدول1[[#This Row],[القبض]]-E407","v":0}]
[null,null,null,null,null,{"$f":"F407+الجدول1[[#This Row],[القبض]]-E408","v":0}]
[null,null,null,null,null,{"$f":"F408+الجدول1[[#This Row],[القبض]]-E409","v":0}]
[null,null,null,null,null,{"$f":"F409+الجدول1[[#This Row],[القبض]]-E410","v":0}]
[null,null,null,null,null,{"$f":"F410+الجدول1[[#This Row],[القبض]]-E411","v":0}]
[null,null,null,null,null,{"$f":"F411+الجدول1[[#This Row],[القبض]]-E412","v":0}]
[null,null,null,null,null,{"$f":"F412+الجدول1[[#This Row],[القبض]]-E413","v":0}]
[null,null,null,null,null,{"$f":"F413+الجدول1[[#This Row],[القبض]]-E414","v":0}]
[null,null,null,null,null,{"$f":"F414+الجدول1[[#This Row],[القبض]]-E415","v":0}]
[null,null,null,null,null,{"$f":"F415+الجدول1[[#This Row],[القبض]]-E416","v":0}]
[null,null,null,null,null,{"$f":"F416+الجدول1[[#This Row],[القبض]]-E417","v":0}]
[null,null,null,null,null,{"$f":"F417+الجدول1[[#This Row],[القبض]]-E418","v":0}]
[null,null,null,null,null,{"$f":"F418+الجدول1[[#This Row],[القبض]]-E419","v":0}]
[null,null,null,null,null,{"$f":"F419+الجدول1[[#This Row],[القبض]]-E420","v":0}]
[null,null,null,null,null,{"$f":"F420+الجدول1[[#This Row],[القبض]]-E421","v":0}]
[null,null,null,null,null,{"$f":"F421+الجدول1[[#This Row],[القبض]]-E422","v":0}]
[null,null,null,null,null,{"$f":"F422+الجدول1[[#This Row],[القبض]]-E423","v":0}]
[null,null,null,null,null,{"$f":"F423+الجدول1[[#This Row],[القبض]]-E424","v":0}]
[null,null,null,null,null,{"$f":"F424+الجدول1[[#This Row],[القبض]]-E425","v":0}]
[null,null,null,null,null,{"$f":"F425+الجدول1[[#This Row],[القبض]]-E426","v":0}]
[null,null,null,null,null,{"$f":"F426+الجدول1[[#This Row],[القبض]]-E427","v":0}]
[null,null,null,null,null,{"$f":"F427+الجدول1[[#This Row],[القبض]]-E428","v":0}]
[null,null,null,null,null,{"$f":"F428+الجدول1[[#This Row],[القبض]]-E429","v":0}]
[null,null,null,null,null,{"$f":"F429+الجدول1[[#This Row],[القبض]]-E430","v":0}]
[null,null,null,null,null,{"$f":"F430+الجدول1[[#This Row],[القبض]]-E431","v":0}]
[null,null,null,null,null,{"$f":"F431+الجدول1[[#This Row],[القبض]]-E432","v":0}]
[null,null,null,null,null,{"$f":"F432+الجدول1[[#This Row],[القبض]]-E433","v":0}]
[null,null,null,null,null,{"$f":"F433+الجدول1[[#This Row],[القبض]]-E434","v":0}]
[null,null,null,null,null,{"$f":"F434+الجدول1[[#This Row],[القبض]]-E435","v":0}]
[null,null,null,null,null,{"$f":"F435+الجدول1[[#This Row],[القبض]]-E436","v":0}]
[null,null,null,null,null,{"$f":"F436+الجدول1[[#This Row],[القبض]]-E437","v":0}]
[null,null,null,null,null,{"$f":"F437+الجدول1[[#This Row],[القبض]]-E438","v":0}]
[null,null,null,null,null,{"$f":"F438+الجدول1[[#This Row],[القبض]]-E439","v":0}]
[null,null,null,null,null,{"$f":"F439+الجدول1[[#This Row],[القبض]]-E440","v":0}]
[null,null,null,null,null,{"$f":"F440+الجدول1[[#This Row],[القبض]]-E441","v":0}]
[null,null,null,null,null,{"$f":"F441+الجدول1[[#This Row],[القبض]]-E442","v":0}]
[null,null,null,null,null,{"$f":"F442+الجدول1[[#This Row],[القبض]]-E443","v":0}]
[null,null,null,null,null,{"$f":"F443+الجدول1[[#This Row],[القبض]]-E444","v":0}]
[null,null,null,null,null,{"$f":"F444+الجدول1[[#This Row],[القبض]]-E445","v":0}]
[null,null,null,null,null,{"$f":"F445+الجدول1[[#This Row],[القبض]]-E446","v":0}]
[null,null,null,null,null,{"$f":"F446+الجدول1[[#This Row],[القبض]]-E447","v":0}]
[null,null,null,null,null,{"$f":"F447+الجدول1[[#This Row],[القبض]]-E448","v":0}]
[null,null,null,null,null,{"$f":"F448+الجدول1[[#This Row],[القبض]]-E449","v":0}]
[null,null,null,null,null,{"$f":"F449+الجدول1[[#This Row],[القبض]]-E450","v":0}]
[null,null,null,null,null,{"$f":"F450+الجدول1[[#This Row],[القبض]]-E451","v":0}]
[null,null,null,null,null,{"$f":"F451+الجدول1[[#This Row],[القبض]]-E452","v":0}]
[null,null,null,null,null,{"$f":"F452+الجدول1[[#This Row],[القبض]]-E453","v":0}]
[null,null,null,null,null,{"$f":"F453+الجدول1[[#This Row],[القبض]]-E454","v":0}]
[null,null,null,null,null,{"$f":"F454+الجدول1[[#This Row],[القبض]]-E455","v":0}]
[null,null,null,null,null,{"$f":"F455+الجدول1[[#This Row],[القبض]]-E456","v":0}]
[null,null,null,null,null,{"$f":"F456+الجدول1[[#This Row],[القبض]]-E457","v":0}]
[null,null,null,null,null,{"$f":"F457+الجدول1[[#This Row],[القبض]]-E458","v":0}]
[null,null,null,null,null,{"$f":"F458+الجدول1[[#This Row],[القبض]]-E459","v":0}]
[null,null,null,null,null,{"$f":"F459+الجدول1[[#This Row],[القبض]]-E460","v":0}]
[null,null,null,null,null,{"$f":"F460+الجدول1[[#This Row],[القبض]]-E461","v":0}]
[null,null,null,null,null,{"$f":"F461+الجدول1[[#This Row],[القبض]]-E462","v":0}]
[null,null,null,null,null,{"$f":"F462+الجدول1[[#This Row],[القبض]]-E463","v":0}]
[null,null,null,null,null,{"$f":"F463+الجدول1[[#This Row],[القبض]]-E464","v":0}]
[null,null,null,null,null,{"$f":"F464+الجدول1[[#This Row],[القبض]]-E465","v":0}]
[null,null,null,null,null,{"$f":"F465+الجدول1[[#This Row],[القبض]]-E466","v":0}]
[null,null,null,null,null,{"$f":"F466+الجدول1[[#This Row],[القبض]]-E467","v":0}]
[null,null,null,null,null,{"$f":"F467+الجدول1[[#This Row],[القبض]]-E468","v":0}]
[null,null,null,null,null,{"$f":"F468+الجدول1[[#This Row],[القبض]]-E469","v":0}]
[null,null,null,null,null,{"$f":"F469+الجدول1[[#This Row],[القبض]]-E470","v":0}]
[null,null,null,null,null,{"$f":"F470+الجدول1[[#This Row],[القبض]]-E471","v":0}]
[null,null,null,null,null,{"$f":"F471+الجدول1[[#This Row],[القبض]]-E472","v":0}]
[null,null,null,null,null,{"$f":"F472+الجدول1[[#This Row],[القبض]]-E473","v":0}]
[null,null,null,null,null,{"$f":"F473+الجدول1[[#This Row],[القبض]]-E474","v":0}]
[null,null,null,null,null,{"$f":"F474+الجدول1[[#This Row],[القبض]]-E475","v":0}]
[null,null,null,null,null,{"$f":"F475+الجدول1[[#This Row],[القبض]]-E476","v":0}]
[null,null,null,null,null,{"$f":"F476+الجدول1[[#This Row],[القبض]]-E477","v":0}]
[null,null,null,null,null,{"$f":"F477+الجدول1[[#This Row],[القبض]]-E478","v":0}]
[null,null,null,null,null,{"$f":"F478+الجدول1[[#This Row],[القبض]]-E479","v":0}]
[null,null,null,null,null,{"$f":"F479+الجدول1[[#This Row],[القبض]]-E480","v":0}]
[null,null,null,null,null,{"$f":"F480+الجدول1[[#This Row],[القبض]]-E481","v":0}]
[null,null,null,null,null,{"$f":"F481+الجدول1[[#This Row],[القبض]]-E482","v":0}]
[null,null,null,null,null,{"$f":"F482+الجدول1[[#This Row],[القبض]]-E483","v":0}]
[null,null,null,null,null,{"$f":"F483+الجدول1[[#This Row],[القبض]]-E484","v":0}]
[null,null,null,null,null,{"$f":"F484+الجدول1[[#This Row],[القبض]]-E485","v":0}]
[null,null,null,null,null,{"$f":"F485+الجدول1[[#This Row],[القبض]]-E486","v":0}]
[null,null,null,null,null,{"$f":"F486+الجدول1[[#This Row],[القبض]]-E487","v":0}]
[null,null,null,null,null,{"$f":"F487+الجدول1[[#This Row],[القبض]]-E488","v":0}]
[null,null,null,null,null,{"$f":"F488+الجدول1[[#This Row],[القبض]]-E489","v":0}]
[null,null,null,null,null,{"$f":"F489+الجدول1[[#This Row],[القبض]]-E490","v":0}]
[null,null,null,null,null,{"$f":"F490+الجدول1[[#This Row],[القبض]]-E491","v":0}]
[null,null,null,null,null,{"$f":"F491+الجدول1[[#This Row],[القبض]]-E492","v":0}]
[null,null,null,null,null,{"$f":"F492+الجدول1[[#This Row],[القبض]]-E493","v":0}]
[null,null,null,null,null,{"$f":"F493+الجدول1[[#This Row],[القبض]]-E494","v":0}]
[null,null,null,null,null,{"$f":"F494+الجدول1[[#This Row],[القبض]]-E495","v":0}]
[null,null,null,null,null,{"$f":"F495+الجدول1[[#This Row],[القبض]]-E496","v":0}]
[null,null,null,null,null,{"$f":"F496+الجدول1[[#This Row],[القبض]]-E497","v":0}]
[null,null,null,null,null,{"$f":"F497+الجدول1[[#This Row],[القبض]]-E498","v":0}]
[null,null,null,null,null,{"$f":"F498+الجدول1[[#This Row],[القبض]]-E499","v":0}]
[null,null,null,null,null,{"$f":"F499+الجدول1[[#This Row],[القبض]]-E500","v":0}]
[null,null,null,null,null,{"$f":"F500+الجدول1[[#This Row],[القبض]]-E501","v":0}]
[null,null,null,null,null,{"$f":"F501+الجدول1[[#This Row],[القبض]]-E502","v":0}]
[null,null,null,null,null,{"$f":"F502+الجدول1[[#This Row],[القبض]]-E503","v":0}]
[null,null,null,null,null,{"$f":"F503+الجدول1[[#This Row],[القبض]]-E504","v":0}]
[null,null,null,null,null,{"$f":"F504+الجدول1[[#This Row],[القبض]]-E505","v":0}]
[null,null,null,null,null,{"$f":"F505+الجدول1[[#This Row],[القبض]]-E506","v":0}]
[null,null,null,null,null,{"$f":"F506+الجدول1[[#This Row],[القبض]]-E507","v":0}]
[null,null,null,null,null,{"$f":"F507+الجدول1[[#This Row],[القبض]]-E508","v":0}]
[null,null,null,null,null,{"$f":"F508+الجدول1[[#This Row],[القبض]]-E509","v":0}]
[null,null,null,null,null,{"$f":"F509+الجدول1[[#This Row],[القبض]]-E510","v":0}]
[null,null,null,null,null,{"$f":"F510+الجدول1[[#This Row],[القبض]]-E511","v":0}]
[null,null,null,null,null,{"$f":"F511+الجدول1[[#This Row],[القبض]]-E512","v":0}]
[null,null,null,null,null,{"$f":"F512+الجدول1[[#This Row],[القبض]]-E513","v":0}]
[null,null,null,null,null,{"$f":"F513+الجدول1[[#This Row],[القبض]]-E514","v":0}]
[null,null,null,null,null,{"$f":"F514+الجدول1[[#This Row],[القبض]]-E515","v":0}]
[null,null,null,null,null,{"$f":"F515+الجدول1[[#This Row],[القبض]]-E516","v":0}]
[null,null,null,null,null,{"$f":"F516+الجدول1[[#This Row],[القبض]]-E517","v":0}]
[null,null,null,null,null,{"$f":"F517+الجدول1[[#This Row],[القبض]]-E518","v":0}]
[null,null,null,null,null,{"$f":"F518+الجدول1[[#This Row],[القبض]]-E519","v":0}]
[null,null,null,null,null,{"$f":"F519+الجدول1[[#This Row],[القبض]]-E520","v":0}]
[null,null,null,null,null,{"$f":"F520+الجدول1[[#This Row],[القبض]]-E521","v":0}]
[null,null,null,null,null,{"$f":"F521+الجدول1[[#This Row],[القبض]]-E522","v":0}]
[null,null,null,null,null,{"$f":"F522+الجدول1[[#This Row],[القبض]]-E523","v":0}]
[null,null,null,null,null,{"$f":"F523+الجدول1[[#This Row],[القبض]]-E524","v":0}]
[null,null,null,null,null,{"$f":"F524+الجدول1[[#This Row],[القبض]]-E525","v":0}]
[null,null,null,null,null,{"$f":"F525+الجدول1[[#This Row],[القبض]]-E526","v":0}]
[null,null,null,null,null,{"$f":"F526+الجدول1[[#This Row],[القبض]]-E527","v":0}]
[null,null,null,null,null,{"$f":"F527+الجدول1[[#This Row],[القبض]]-E528","v":0}]
[null,null,null,null,null,{"$f":"F528+الجدول1[[#This Row],[القبض]]-E529","v":0}]
[null,null,null,null,null,{"$f":"F529+الجدول1[[#This Row],[القبض]]-E530","v":0}]
[null,null,null,null,null,{"$f":"F530+الجدول1[[#This Row],[القبض]]-E531","v":0}]
[null,null,null,null,null,{"$f":"F531+الجدول1[[#This Row],[القبض]]-E532","v":0}]
[null,null,null,null,null,{"$f":"F532+الجدول1[[#This Row],[القبض]]-E533","v":0}]
[null,null,null,null,null,{"$f":"F533+الجدول1[[#This Row],[القبض]]-E534","v":0}]
[null,null,null,null,null,{"$f":"F534+الجدول1[[#This Row],[القبض]]-E535","v":0}]
[null,null,null,null,null,{"$f":"F535+الجدول1[[#This Row],[القبض]]-E536","v":0}]
[null,null,null,null,null,{"$f":"F536+الجدول1[[#This Row],[القبض]]-E537","v":0}]
[null,null,null,null,null,{"$f":"F537+الجدول1[[#This Row],[القبض]]-E538","v":0}]
[null,null,null,null,null,{"$f":"F538+الجدول1[[#This Row],[القبض]]-E539","v":0}]
[null,null,null,null,null,{"$f":"F539+الجدول1[[#This Row],[القبض]]-E540","v":0}]
[null,null,null,null,null,{"$f":"F540+الجدول1[[#This Row],[القبض]]-E541","v":0}]
[null,null,null,null,null,{"$f":"F541+الجدول1[[#This Row],[القبض]]-E542","v":0}]
[null,null,null,null,null,{"$f":"F542+الجدول1[[#This Row],[القبض]]-E543","v":0}]
[null,null,null,null,null,{"$f":"F543+الجدول1[[#This Row],[القبض]]-E544","v":0}]
[null,null,null,null,null,{"$f":"F544+الجدول1[[#This Row],[القبض]]-E545","v":0}]
[null,null,null,null,null,{"$f":"F545+الجدول1[[#This Row],[القبض]]-E546","v":0}]
[null,null,null,null,null,{"$f":"F546+الجدول1[[#This Row],[القبض]]-E547","v":0}]
[null,null,null,null,null,{"$f":"F547+الجدول1[[#This Row],[القبض]]-E548","v":0}]
[null,null,null,null,null,{"$f":"F548+الجدول1[[#This Row],[القبض]]-E549","v":0}]
[null,null,null,null,null,{"$f":"F549+الجدول1[[#This Row],[القبض]]-E550","v":0}]
[null,null,null,null,null,{"$f":"F550+الجدول1[[#This Row],[القبض]]-E551","v":0}]
[null,null,null,null,null,{"$f":"F551+الجدول1[[#This Row],[القبض]]-E552","v":0}]
[null,null,null,null,null,{"$f":"F552+الجدول1[[#This Row],[القبض]]-E553","v":0}]
[null,null,null,null,null,{"$f":"F553+الجدول1[[#This Row],[القبض]]-E554","v":0}]
[null,null,null,null,null,{"$f":"F554+الجدول1[[#This Row],[القبض]]-E555","v":0}]
[null,null,null,null,null,{"$f":"F555+الجدول1[[#This Row],[القبض]]-E556","v":0}]
[null,null,null,null,null,{"$f":"F556+الجدول1[[#This Row],[القبض]]-E557","v":0}]
[null,null,null,null,null,{"$f":"F557+الجدول1[[#This Row],[القبض]]-E558","v":0}]
[null,null,null,null,null,{"$f":"F558+الجدول1[[#This Row],[القبض]]-E559","v":0}]
[null,null,null,null,null,{"$f":"F559+الجدول1[[#This Row],[القبض]]-E560","v":0}]
[null,null,null,null,null,{"$f":"F560+الجدول1[[#This Row],[القبض]]-E561","v":0}]
[null,null,null,null,null,{"$f":"F561+الجدول1[[#This Row],[القبض]]-E562","v":0}]
[null,null,null,null,null,{"$f":"F562+الجدول1[[#This Row],[القبض]]-E563","v":0}]
[null,null,null,null,null,{"$f":"F563+الجدول1[[#This Row],[القبض]]-E564","v":0}]
[null,null,null,null,null,{"$f":"F564+الجدول1[[#This Row],[القبض]]-E565","v":0}]
[null,null,null,null,null,{"$f":"F565+الجدول1[[#This Row],[القبض]]-E566","v":0}]
[null,null,null,null,null,{"$f":"F566+الجدول1[[#This Row],[القبض]]-E567","v":0}]
[null,null,null,null,null,{"$f":"F567+الجدول1[[#This Row],[القبض]]-E568","v":0}]
[null,null,null,null,null,{"$f":"F568+الجدول1[[#This Row],[القبض]]-E569","v":0}]
[null,null,null,null,null,{"$f":"F569+الجدول1[[#This Row],[القبض]]-E570","v":0}]
[null,null,null,null,null,{"$f":"F570+الجدول1[[#This Row],[القبض]]-E571","v":0}]
[null,null,null,null,null,{"$f":"F571+الجدول1[[#This Row],[القبض]]-E572","v":0}]
[null,null,null,null,null,{"$f":"F572+الجدول1[[#This Row],[القبض]]-E573","v":0}]
[null,null,null,null,null,{"$f":"F573+الجدول1[[#This Row],[القبض]]-E574","v":0}]
[null,null,null,null,null,{"$f":"F574+الجدول1[[#This Row],[القبض]]-E575","v":0}]
[null,null,null,null,null,{"$f":"F575+الجدول1[[#This Row],[القبض]]-E576","v":0}]
[null,null,null,null,null,{"$f":"F576+الجدول1[[#This Row],[القبض]]-E577","v":0}]
[null,null,null,null,null,{"$f":"F577+الجدول1[[#This Row],[القبض]]-E578","v":0}]
[null,null,null,null,null,{"$f":"F578+الجدول1[[#This Row],[القبض]]-E579","v":0}]
[null,null,null,null,null,{"$f":"F579+الجدول1[[#This Row],[القبض]]-E580","v":0}]
[null,null,null,null,null,{"$f":"F580+الجدول1[[#This Row],[القبض]]-E581","v":0}]
[null,null,null,null,null,{"$f":"F581+الجدول1[[#This Row],[القبض]]-E582","v":0}]
[null,null,null,null,null,{"$f":"F582+الجدول1[[#This Row],[القبض]]-E583","v":0}]
[null,null,null,null,null,{"$f":"F583+الجدول1[[#This Row],[القبض]]-E584","v":0}]
[null,null,null,null,null,{"$f":"F584+الجدول1[[#This Row],[القبض]]-E585","v":0}]
[null,null,null,null,null,{"$f":"F585+الجدول1[[#This Row],[القبض]]-E586","v":0}]
[null,null,null,null,null,{"$f":"F586+الجدول1[[#This Row],[القبض]]-E587","v":0}]
[null,null,null,null,null,{"$f":"F587+الجدول1[[#This Row],[القبض]]-E588","v":0}]
[null,null,null,null,null,{"$f":"F588+الجدول1[[#This Row],[القبض]]-E589","v":0}]
[null,null,null,null,null,{"$f":"F589+الجدول1[[#This Row],[القبض]]-E590","v":0}]
[null,null,null,null,null,{"$f":"F590+الجدول1[[#This Row],[القبض]]-E591","v":0}]
[null,null,null,null,null,{"$f":"F591+الجدول1[[#This Row],[القبض]]-E592","v":0}]
[null,null,null,null,null,{"$f":"F592+الجدول1[[#This Row],[القبض]]-E593","v":0}]
[null,null,null,null,null,{"$f":"F593+الجدول1[[#This Row],[القبض]]-E594","v":0}]
[null,null,null,null,null,{"$f":"F594+الجدول1[[#This Row],[القبض]]-E595","v":0}]
[null,null,null,null,null,{"$f":"F595+الجدول1[[#This Row],[القبض]]-E596","v":0}]
[null,null,null,null,null,{"$f":"F596+الجدول1[[#This Row],[القبض]]-E597","v":0}]
[null,null,null,null,null,{"$f":"F597+الجدول1[[#This Row],[القبض]]-E598","v":0}]
[null,null,null,null,null,{"$f":"F598+الجدول1[[#This Row],[القبض]]-E599","v":0}]
[null,null,null,null,null,{"$f":"F599+الجدول1[[#This Row],[القبض]]-E600","v":0}]
[null,null,null,null,null,{"$f":"F600+الجدول1[[#This Row],[القبض]]-E601","v":0}]
[null,null,null,null,null,{"$f":"F601+الجدول1[[#This Row],[القبض]]-E602","v":0}]
[null,null,null,null,null,{"$f":"F602+الجدول1[[#This Row],[القبض]]-E603","v":0}]
[null,null,null,null,null,{"$f":"F603+الجدول1[[#This Row],[القبض]]-E604","v":0}]
[null,null,null,null,null,{"$f":"F604+الجدول1[[#This Row],[القبض]]-E605","v":0}]
[null,null,null,null,null,{"$f":"F605+الجدول1[[#This Row],[القبض]]-E606","v":0}]
[null,null,null,null,null,{"$f":"F606+الجدول1[[#This Row],[القبض]]-E607","v":0}]
[null,null,null,null,null,{"$f":"F607+الجدول1[[#This Row],[القبض]]-E608","v":0}]
[null,null,null,null,null,{"$f":"F608+الجدول1[[#This Row],[القبض]]-E609","v":0}]
[null,null,null,null,null,{"$f":"F609+الجدول1[[#This Row],[القبض]]-E610","v":0}]
[null,null,null,null,null,{"$f":"F610+الجدول1[[#This Row],[القبض]]-E611","v":0}]
[null,null,null,null,null,{"$f":"F611+الجدول1[[#This Row],[القبض]]-E612","v":0}]
[null,null,null,null,null,{"$f":"F612+الجدول1[[#This Row],[القبض]]-E613","v":0}]
[null,null,null,null,null,{"$f":"F613+الجدول1[[#This Row],[القبض]]-E614","v":0}]
[null,null,null,null,null,{"$f":"F614+الجدول1[[#This Row],[القبض]]-E615","v":0}]
[null,null,null,null,null,{"$f":"F615+الجدول1[[#This Row],[القبض]]-E616","v":0}]
[null,null,null,null,null,{"$f":"F616+الجدول1[[#This Row],[القبض]]-E617","v":0}]
[null,null,null,null,null,{"$f":"F617+الجدول1[[#This Row],[القبض]]-E618","v":0}]
[null,null,null,null,null,{"$f":"F618+الجدول1[[#This Row],[القبض]]-E619","v":0}]
[null,null,null,null,null,{"$f":"F619+الجدول1[[#This Row],[القبض]]-E620","v":0}]
[null,null,null,null,null,{"$f":"F620+الجدول1[[#This Row],[القبض]]-E621","v":0}]
[null,null,null,null,null,{"$f":"F621+الجدول1[[#This Row],[القبض]]-E622","v":0}]
[null,null,null,null,null,{"$f":"F622+الجدول1[[#This Row],[القبض]]-E623","v":0}]
[null,null,null,null,null,{"$f":"F623+الجدول1[[#This Row],[القبض]]-E624","v":0}]
[null,null,null,null,null,{"$f":"F624+الجدول1[[#This Row],[القبض]]-E625","v":0}]
[null,null,null,null,null,{"$f":"F625+الجدول1[[#This Row],[القبض]]-E626","v":0}]
[null,null,null,null,null,{"$f":"F626+الجدول1[[#This Row],[القبض]]-E627","v":0}]
[null,null,null,null,null,{"$f":"F627+الجدول1[[#This Row],[القبض]]-E628","v":0}]
[null,null,null,null,null,{"$f":"F628+الجدول1[[#This Row],[القبض]]-E629","v":0}]
[null,null,null,null,null,{"$f":"F629+الجدول1[[#This Row],[القبض]]-E630","v":0}]
[null,null,null,null,null,{"$f":"F630+الجدول1[[#This Row],[القبض]]-E631","v":0}]
[null,null,null,null,null,{"$f":"F631+الجدول1[[#This Row],[القبض]]-E632","v":0}]
[null,null,null,null,null,{"$f":"F632+الجدول1[[#This Row],[القبض]]-E633","v":0}]
[null,null,null,null,null,{"$f":"F633+الجدول1[[#This Row],[القبض]]-E634","v":0}]
[null,null,null,null,null,{"$f":"F634+الجدول1[[#This Row],[القبض]]-E635","v":0}]
[null,null,null,null,null,{"$f":"F635+الجدول1[[#This Row],[القبض]]-E636","v":0}]
[null,null,null,null,null,{"$f":"F636+الجدول1[[#This Row],[القبض]]-E637","v":0}]
[null,null,null,null,null,{"$f":"F637+الجدول1[[#This Row],[القبض]]-E638","v":0}]
[null,null,null,null,null,{"$f":"F638+الجدول1[[#This Row],[القبض]]-E639","v":0}]
[null,null,null,null,null,{"$f":"F639+الجدول1[[#This Row],[القبض]]-E640","v":0}]
[null,null,null,null,null,{"$f":"F640+الجدول1[[#This Row],[القبض]]-E641","v":0}]
[null,null,null,null,null,{"$f":"F641+الجدول1[[#This Row],[القبض]]-E642","v":0}]
[null,null,null,null,null,{"$f":"F642+الجدول1[[#This Row],[القبض]]-E643","v":0}]
[null,null,null,null,null,{"$f":"F643+الجدول1[[#This Row],[القبض]]-E644","v":0}]
[null,null,null,null,null,{"$f":"F644+الجدول1[[#This Row],[القبض]]-E645","v":0}]
[null,null,null,null,null,{"$f":"F645+الجدول1[[#This Row],[القبض]]-E646","v":0}]
[null,null,null,null,null,{"$f":"F646+الجدول1[[#This Row],[القبض]]-E647","v":0}]
[null,null,null,null,null,{"$f":"F647+الجدول1[[#This Row],[القبض]]-E648","v":0}]
[null,null,null,null,null,{"$f":"F648+الجدول1[[#This Row],[القبض]]-E649","v":0}]
[null,null,null,null,null,{"$f":"F649+الجدول1[[#This Row],[القبض]]-E650","v":0}]
[null,null,null,null,null,{"$f":"F650+الجدول1[[#This Row],[القبض]]-E651","v":0}]
[null,null,null,null,null,{"$f":"F651+الجدول1[[#This Row],[القبض]]-E652","v":0}]
[null,null,null,null,null,{"$f":"F652+الجدول1[[#This Row],[القبض]]-E653","v":0}]
[null,null,null,null,null,{"$f":"F653+الجدول1[[#This Row],[القبض]]-E654","v":0}]
[null,null,null,null,null,{"$f":"F654+الجدول1[[#This Row],[القبض]]-E655","v":0}]
[null,null,null,null,null,{"$f":"F655+الجدول1[[#This Row],[القبض]]-E656","v":0}]
[null,null,null,null,null,{"$f":"F656+الجدول1[[#This Row],[القبض]]-E657","v":0}]
[null,null,null,null,null,{"$f":"F657+الجدول1[[#This Row],[القبض]]-E658","v":0}]
[null,null,null,null,null,{"$f":"F658+الجدول1[[#This Row],[القبض]]-E659","v":0}]
[null,null,null,null,null,{"$f":"F659+الجدول1[[#This Row],[القبض]]-E660","v":0}]
[null,null,null,null,null,{"$f":"F660+الجدول1[[#This Row],[القبض]]-E661","v":0}]
[null,null,null,null,null,{"$f":"F661+الجدول1[[#This Row],[القبض]]-E662","v":0}]
[null,null,null,null,null,{"$f":"F662+الجدول1[[#This Row],[القبض]]-E663","v":0}]
[null,null,null,null,null,{"$f":"F663+الجدول1[[#This Row],[القبض]]-E664","v":0}]
[null,null,null,null,null,{"$f":"F664+الجدول1[[#This Row],[القبض]]-E665","v":0}]
[null,null,null,null,null,{"$f":"F665+الجدول1[[#This Row],[القبض]]-E666","v":0}]
[null,null,null,null,null,{"$f":"F666+الجدول1[[#This Row],[القبض]]-E667","v":0}]
[null,null,null,null,null,{"$f":"F667+الجدول1[[#This Row],[القبض]]-E668","v":0}]
[null,null,null,null,null,{"$f":"F668+الجدول1[[#This Row],[القبض]]-E669","v":0}]
[null,null,null,null,null,{"$f":"F669+الجدول1[[#This Row],[القبض]]-E670","v":0}]
[null,null,null,null,null,{"$f":"F670+الجدول1[[#This Row],[القبض]]-E671","v":0}]
[null,null,null,null,null,{"$f":"F671+الجدول1[[#This Row],[القبض]]-E672","v":0}]
[null,null,null,null,null,{"$f":"F672+الجدول1[[#This Row],[القبض]]-E673","v":0}]
[null,null,null,null,null,{"$f":"F673+الجدول1[[#This Row],[القبض]]-E674","v":0}]
[null,null,null,null,null,{"$f":"F674+الجدول1[[#This Row],[القبض]]-E675","v":0}]
[null,null,null,null,null,{"$f":"F675+الجدول1[[#This Row],[القبض]]-E676","v":0}]
[null,null,null,null,null,{"$f":"F676+الجدول1[[#This Row],[القبض]]-E677","v":0}]
[null,null,null,null,null,{"$f":"F677+الجدول1[[#This Row],[القبض]]-E678","v":0}]
[null,null,null,null,null,{"$f":"F678+الجدول1[[#This Row],[القبض]]-E679","v":0}]
[null,null,null,null,null,{"$f":"F679+الجدول1[[#This Row],[القبض]]-E680","v":0}]
[null,null,null,null,null,{"$f":"F680+الجدول1[[#This Row],[القبض]]-E681","v":0}]
[null,null,null,null,null,{"$f":"F681+الجدول1[[#This Row],[القبض]]-E682","v":0}]
[null,null,null,null,null,{"$f":"F682+الجدول1[[#This Row],[القبض]]-E683","v":0}]
[null,null,null,null,null,{"$f":"F683+الجدول1[[#This Row],[القبض]]-E684","v":0}]
[null,null,null,null,null,{"$f":"F684+الجدول1[[#This Row],[القبض]]-E685","v":0}]
[null,null,null,null,null,{"$f":"F685+الجدول1[[#This Row],[القبض]]-E686","v":0}]
[null,null,null,null,null,{"$f":"F686+الجدول1[[#This Row],[القبض]]-E687","v":0}]
[null,null,null,null,null,{"$f":"F687+الجدول1[[#This Row],[القبض]]-E688","v":0}]
[null,null,null,null,null,{"$f":"F688+الجدول1[[#This Row],[القبض]]-E689","v":0}]
[null,null,null,null,null,{"$f":"F689+الجدول1[[#This Row],[القبض]]-E690","v":0}]
[null,null,null,null,null,{"$f":"F690+الجدول1[[#This Row],[القبض]]-E691","v":0}]
[null,null,null,null,null,{"$f":"F691+الجدول1[[#This Row],[القبض]]-E692","v":0}]
[null,null,null,null,null,{"$f":"F692+الجدول1[[#This Row],[القبض]]-E693","v":0}]
[null,null,null,null,null,{"$f":"F693+الجدول1[[#This Row],[القبض]]-E694","v":0}]
[null,null,null,null,null,{"$f":"F694+الجدول1[[#This Row],[القبض]]-E695","v":0}]
[null,null,null,null,null,{"$f":"F695+الجدول1[[#This Row],[القبض]]-E696","v":0}]
[null,null,null,null,null,{"$f":"F696+الجدول1[[#This Row],[القبض]]-E697","v":0}]
[null,null,null,null,null,{"$f":"F697+الجدول1[[#This Row],[القبض]]-E698","v":0}]
[null,null,null,null,null,{"$f":"F698+الجدول1[[#This Row],[القبض]]-E699","v":0}]
[null,null,null,null,null,{"$f":"F699+الجدول1[[#This Row],[القبض]]-E700","v":0}]
[null,null,null,null,null,{"$f":"F700+الجدول1[[#This Row],[القبض]]-E701","v":0}]
[null,null,null,null,null,{"$f":"F701+الجدول1[[#This Row],[القبض]]-E702","v":0}]
[null,null,null,null,null,{"$f":"F702+الجدول1[[#This Row],[القبض]]-E703","v":0}]
[null,null,null,null,null,{"$f":"F703+الجدول1[[#This Row],[القبض]]-E704","v":0}]
[null,null,null,null,null,{"$f":"F704+الجدول1[[#This Row],[القبض]]-E705","v":0}]
[null,null,null,null,null,{"$f":"F705+الجدول1[[#This Row],[القبض]]-E706","v":0}]
[null,null,null,null,null,{"$f":"F706+الجدول1[[#This Row],[القبض]]-E707","v":0}]
[null,null,null,null,null,{"$f":"F707+الجدول1[[#This Row],[القبض]]-E708","v":0}]
[null,null,null,null,null,{"$f":"F708+الجدول1[[#This Row],[القبض]]-E709","v":0}]
[null,null,null,null,null,{"$f":"F709+الجدول1[[#This Row],[القبض]]-E710","v":0}]
[null,null,null,null,null,{"$f":"F710+الجدول1[[#This Row],[القبض]]-E711","v":0}]
[null,null,null,null,null,{"$f":"F711+الجدول1[[#This Row],[القبض]]-E712","v":0}]
[null,null,null,null,null,{"$f":"F712+الجدول1[[#This Row],[القبض]]-E713","v":0}]
[null,null,null,null,null,{"$f":"F713+الجدول1[[#This Row],[القبض]]-E714","v":0}]
[null,null,null,null,null,{"$f":"F714+الجدول1[[#This Row],[القبض]]-E715","v":0}]
[null,null,null,null,null,{"$f":"F715+الجدول1[[#This Row],[القبض]]-E716","v":0}]
[null,null,null,null,null,{"$f":"F716+الجدول1[[#This Row],[القبض]]-E717","v":0}]
[null,null,null,null,null,{"$f":"F717+الجدول1[[#This Row],[القبض]]-E718","v":0}]
[null,null,null,null,null,{"$f":"F718+الجدول1[[#This Row],[القبض]]-E719","v":0}]
[null,null,null,null,null,{"$f":"F719+الجدول1[[#This Row],[القبض]]-E720","v":0}]
[null,null,null,null,null,{"$f":"F720+الجدول1[[#This Row],[القبض]]-E721","v":0}]
[null,null,null,null,null,{"$f":"F721+الجدول1[[#This Row],[القبض]]-E722","v":0}]
[null,null,null,null,null,{"$f":"F722+الجدول1[[#This Row],[القبض]]-E723","v":0}]
[null,null,null,null,null,{"$f":"F723+الجدول1[[#This Row],[القبض]]-E724","v":0}]
[null,null,null,null,null,{"$f":"F724+الجدول1[[#This Row],[القبض]]-E725","v":0}]
[null,null,null,null,null,{"$f":"F725+الجدول1[[#This Row],[القبض]]-E726","v":0}]
[null,null,null,null,null,{"$f":"F726+الجدول1[[#This Row],[القبض]]-E727","v":0}]
[null,null,null,null,null,{"$f":"F727+الجدول1[[#This Row],[القبض]]-E728","v":0}]
[null,null,null,null,null,{"$f":"F728+الجدول1[[#This Row],[القبض]]-E729","v":0}]
[null,null,null,null,null,{"$f":"F729+الجدول1[[#This Row],[القبض]]-E730","v":0}]
[null,null,null,null,null,{"$f":"F730+الجدول1[[#This Row],[القبض]]-E731","v":0}]
[null,null,null,null,null,{"$f":"F731+الجدول1[[#This Row],[القبض]]-E732","v":0}]
[null,null,null,null,null,{"$f":"F732+الجدول1[[#This Row],[القبض]]-E733","v":0}]
[null,null,null,null,null,{"$f":"F733+الجدول1[[#This Row],[القبض]]-E734","v":0}]
[null,null,null,null,null,{"$f":"F734+الجدول1[[#This Row],[القبض]]-E735","v":0}]
[null,null,null,null,null,{"$f":"F735+الجدول1[[#This Row],[القبض]]-E736","v":0}]
[null,null,null,null,null,{"$f":"F736+الجدول1[[#This Row],[القبض]]-E737","v":0}]
[null,null,null,null,null,{"$f":"F737+الجدول1[[#This Row],[القبض]]-E738","v":0}]
[null,null,null,null,null,{"$f":"F738+الجدول1[[#This Row],[القبض]]-E739","v":0}]
[null,null,null,null,null,{"$f":"F739+الجدول1[[#This Row],[القبض]]-E740","v":0}]
[null,null,null,null,null,{"$f":"F740+الجدول1[[#This Row],[القبض]]-E741","v":0}]
[null,null,null,null,null,{"$f":"F741+الجدول1[[#This Row],[القبض]]-E742","v":0}]
[null,null,null,null,null,{"$f":"F742+الجدول1[[#This Row],[القبض]]-E743","v":0}]
[null,null,null,null,null,{"$f":"F743+الجدول1[[#This Row],[القبض]]-E744","v":0}]
[null,null,null,null,null,{"$f":"F744+الجدول1[[#This Row],[القبض]]-E745","v":0}]
[null,null,null,null,null,{"$f":"F745+الجدول1[[#This Row],[القبض]]-E746","v":0}]
[null,null,null,null,null,{"$f":"F746+الجدول1[[#This Row],[القبض]]-E747","v":0}]
[null,null,null,null,null,{"$f":"F747+الجدول1[[#This Row],[القبض]]-E748","v":0}]
[null,null,null,null,null,{"$f":"F748+الجدول1[[#This Row],[القبض]]-E749","v":0}]
[null,null,null,null,null,{"$f":"F749+الجدول1[[#This Row],[القبض]]-E750","v":0}]
[null,null,null,null,null,{"$f":"F750+الجدول1[[#This Row],[القبض]]-E751","v":0}]
[null,null,null,null,null,{"$f":"F751+الجدول1[[#This Row],[القبض]]-E752","v":0}]
[null,null,null,null,null,{"$f":"F752+الجدول1[[#This Row],[القبض]]-E753","v":0}]
[null,null,null,null,null,{"$f":"F753+الجدول1[[#This Row],[القبض]]-E754","v":0}]
[null,null,null,null,null,{"$f":"F754+الجدول1[[#This Row],[القبض]]-E755","v":0}]
[null,null,null,null,null,{"$f":"F755+الجدول1[[#This Row],[القبض]]-E756","v":0}]
[null,null,null,null,null,{"$f":"F756+الجدول1[[#This Row],[القبض]]-E757","v":0}]
[null,null,null,null,null,{"$f":"F757+الجدول1[[#This Row],[القبض]]-E758","v":0}]
[null,null,null,null,null,{"$f":"F758+الجدول1[[#This Row],[القبض]]-E759","v":0}]
[null,null,null,null,null,{"$f":"F759+الجدول1[[#This Row],[القبض]]-E760","v":0}]
[null,null,null,null,null,{"$f":"F760+الجدول1[[#This Row],[القبض]]-E761","v":0}]
[null,null,null,null,null,{"$f":"F761+الجدول1[[#This Row],[القبض]]-E762","v":0}]
[null,null,null,null,null,{"$f":"F762+الجدول1[[#This Row],[القبض]]-E763","v":0}]
[null,null,null,null,null,{"$f":"F763+الجدول1[[#This Row],[القبض]]-E764","v":0}]
[null,null,null,null,null,{"$f":"F764+الجدول1[[#This Row],[القبض]]-E765","v":0}]
[null,null,null,null,null,{"$f":"F765+الجدول1[[#This Row],[القبض]]-E766","v":0}]
[null,null,null,null,null,{"$f":"F766+الجدول1[[#This Row],[القبض]]-E767","v":0}]
[null,null,null,null,null,{"$f":"F767+الجدول1[[#This Row],[القبض]]-E768","v":0}]
[null,null,null,null,null,{"$f":"F768+الجدول1[[#This Row],[القبض]]-E769","v":0}]
[null,null,null,null,null,{"$f":"F769+الجدول1[[#This Row],[القبض]]-E770","v":0}]
[null,null,null,null,null,{"$f":"F770+الجدول1[[#This Row],[القبض]]-E771","v":0}]
[null,null,null,null,null,{"$f":"F771+الجدول1[[#This Row],[القبض]]-E772","v":0}]
[null,null,null,null,null,{"$f":"F772+الجدول1[[#This Row],[القبض]]-E773","v":0}]
[null,null,null,null,null,{"$f":"F773+الجدول1[[#This Row],[القبض]]-E774","v":0}]
[null,null,null,null,null,{"$f":"F774+الجدول1[[#This Row],[القبض]]-E775","v":0}]
[null,null,null,null,null,{"$f":"F775+الجدول1[[#This Row],[القبض]]-E776","v":0}]
[null,null,null,null,null,{"$f":"F776+الجدول1[[#This Row],[القبض]]-E777","v":0}]
[null,null,null,null,null,{"$f":"F777+الجدول1[[#This Row],[القبض]]-E778","v":0}]
[null,null,null,null,null,{"$f":"F778+الجدول1[[#This Row],[القبض]]-E779","v":0}]
[null,null,null,null,null,{"$f":"F779+الجدول1[[#This Row],[القبض]]-E780","v":0}]
[null,null,null,null,null,{"$f":"F780+الجدول1[[#This Row],[القبض]]-E781","v":0}]
[null,null,null,null,null,{"$f":"F781+الجدول1[[#This Row],[القبض]]-E782","v":0}]
[null,null,null,null,null,{"$f":"F782+الجدول1[[#This Row],[القبض]]-E783","v":0}]
[null,null,null,null,null,{"$f":"F783+الجدول1[[#This Row],[القبض]]-E784","v":0}]
[null,null,null,null,null,{"$f":"F784+الجدول1[[#This Row],[القبض]]-E785","v":0}]
[null,null,null,null,null,{"$f":"F785+الجدول1[[#This Row],[القبض]]-E786","v":0}]
[null,null,null,null,null,{"$f":"F786+الجدول1[[#This Row],[القبض]]-E787","v":0}]
[null,null,null,null,null,{"$f":"F787+الجدول1[[#This Row],[القبض]]-E788","v":0}]
[null,null,null,null,null,{"$f":"F788+الجدول1[[#This Row],[القبض]]-E789","v":0}]
[null,null,null,null,null,{"$f":"F789+الجدول1[[#This Row],[القبض]]-E790","v":0}]
[null,null,null,null,null,{"$f":"F790+الجدول1[[#This Row],[القبض]]-E791","v":0}]
[null,null,null,null,null,{"$f":"F791+الجدول1[[#This Row],[القبض]]-E792","v":0}]
[null,null,null,null,null,{"$f":"F792+الجدول1[[#This Row],[القبض]]-E793","v":0}]
[null,null,null,null,null,{"$f":"F793+الجدول1[[#This Row],[القبض]]-E794","v":0}]
[null,null,null,null,null,{"$f":"F794+الجدول1[[#This Row],[القبض]]-E795","v":0}]
[null,null,null,null,null,{"$f":"F795+الجدول1[[#This Row],[القبض]]-E796","v":0}]
[null,null,null,null,null,{"$f":"F796+الجدول1[[#This Row],[القبض]]-E797","v":0}]
[null,null,null,null,null,{"$f":"F797+الجدول1[[#This Row],[القبض]]-E798","v":0}]
[null,null,null,null,null,{"$f":"F798+الجدول1[[#This Row],[القبض]]-E799","v":0}]
[null,null,null,null,null,{"$f":"F799+الجدول1[[#This Row],[القبض]]-E800","v":0}]
[null,null,null,null,null,{"$f":"F800+الجدول1[[#This Row],[القبض]]-E801","v":0}]
[null,null,null,null,null,{"$f":"F801+الجدول1[[#This Row],[القبض]]-E802","v":0}]
[null,null,null,null,null,{"$f":"F802+الجدول1[[#This Row],[القبض]]-E803","v":0}]
[null,null,null,null,null,{"$f":"F803+الجدول1[[#This Row],[القبض]]-E804","v":0}]
[null,null,null,null,null,{"$f":"F804+الجدول1[[#This Row],[القبض]]-E805","v":0}]
[null,null,null,null,null,{"$f":"F805+الجدول1[[#This Row],[القبض]]-E806","v":0}]
[null,null,null,null,null,{"$f":"F806+الجدول1[[#This Row],[القبض]]-E807","v":0}]
[null,null,null,null,null,{"$f":"F807+الجدول1[[#This Row],[القبض]]-E808","v":0}]
[null,null,null,null,null,{"$f":"F808+الجدول1[[#This Row],[القبض]]-E809","v":0}]
[null,null,null,null,null,{"$f":"F809+الجدول1[[#This Row],[القبض]]-E810","v":0}]
[null,null,null,null,null,{"$f":"F810+الجدول1[[#This Row],[القبض]]-E811","v":0}]
[null,null,null,null,null,{"$f":"F811+الجدول1[[#This Row],[القبض]]-E812","v":0}]
[null,null,null,null,null,{"$f":"F812+الجدول1[[#This Row],[القبض]]-E813","v":0}]
[null,null,null,null,null,{"$f":"F813+الجدول1[[#This Row],[القبض]]-E814","v":0}]
[null,null,null,null,null,{"$f":"F814+الجدول1[[#This Row],[القبض]]-E815","v":0}]
[null,null,null,null,null,{"$f":"F815+الجدول1[[#This Row],[القبض]]-E816","v":0}]
[null,null,null,null,null,{"$f":"F816+الجدول1[[#This Row],[القبض]]-E817","v":0}]
[null,null,null,null,null,{"$f":"F817+الجدول1[[#This Row],[القبض]]-E818","v":0}]
[null,null,null,null,null,{"$f":"F818+الجدول1[[#This Row],[القبض]]-E819","v":0}]
[null,null,null,null,null,{"$f":"F819+الجدول1[[#This Row],[القبض]]-E820","v":0}]
[null,null,null,null,null,{"$f":"F820+الجدول1[[#This Row],[القبض]]-E821","v":0}]
[null,null,null,null,null,{"$f":"F821+الجدول1[[#This Row],[القبض]]-E822","v":0}]
[null,null,null,null,null,{"$f":"F822+الجدول1[[#This Row],[القبض]]-E823","v":0}]
[null,null,null,null,null,{"$f":"F823+الجدول1[[#This Row],[القبض]]-E824","v":0}]
[null,null,null,null,null,{"$f":"F824+الجدول1[[#This Row],[القبض]]-E825","v":0}]
[null,null,null,null,null,{"$f":"F825+الجدول1[[#This Row],[القبض]]-E826","v":0}]
[null,null,null,null,null,{"$f":"F826+الجدول1[[#This Row],[القبض]]-E827","v":0}]
[null,null,null,null,null,{"$f":"F827+الجدول1[[#This Row],[القبض]]-E828","v":0}]
[null,null,null,null,null,{"$f":"F828+الجدول1[[#This Row],[القبض]]-E829","v":0}]
[null,null,null,null,null,{"$f":"F829+الجدول1[[#This Row],[القبض]]-E830","v":0}]
[null,null,null,null,null,{"$f":"F830+الجدول1[[#This Row],[القبض]]-E831","v":0}]
[null,null,null,null,null,{"$f":"F831+الجدول1[[#This Row],[القبض]]-E832","v":0}]
[null,null,null,null,null,{"$f":"F832+الجدول1[[#This Row],[القبض]]-E833","v":0}]
[null,null,null,null,null,{"$f":"F833+الجدول1[[#This Row],[القبض]]-E834","v":0}]
[null,null,null,null,null,{"$f":"F834+الجدول1[[#This Row],[القبض]]-E835","v":0}]
[null,null,null,null,null,{"$f":"F835+الجدول1[[#This Row],[القبض]]-E836","v":0}]
[null,null,null,null,null,{"$f":"F836+الجدول1[[#This Row],[القبض]]-E837","v":0}]
[null,null,null,null,null,{"$f":"F837+الجدول1[[#This Row],[القبض]]-E838","v":0}]
[null,null,null,null,null,{"$f":"F838+الجدول1[[#This Row],[القبض]]-E839","v":0}]
[null,null,null,null,null,{"$f":"F839+الجدول1[[#This Row],[القبض]]-E840","v":0}]
[null,null,null,null,null,{"$f":"F840+الجدول1[[#This Row],[القبض]]-E841","v":0}]
[null,null,null,null,null,{"$f":"F841+الجدول1[[#This Row],[القبض]]-E842","v":0}]
[null,null,null,null,null,{"$f":"F842+الجدول1[[#This Row],[القبض]]-E843","v":0}]
[null,null,null,null,null,{"$f":"F843+الجدول1[[#This Row],[القبض]]-E844","v":0}]
[null,null,null,null,null,{"$f":"F844+الجدول1[[#This Row],[القبض]]-E845","v":0}]
[null,null,null,null,null,{"$f":"F845+الجدول1[[#This Row],[القبض]]-E846","v":0}]
[null,null,null,null,null,{"$f":"F846+الجدول1[[#This Row],[القبض]]-E847","v":0}]
[null,null,null,null,null,{"$f":"F847+الجدول1[[#This Row],[القبض]]-E848","v":0}]
[null,null,null,null,null,{"$f":"F848+الجدول1[[#This Row],[القبض]]-E849","v":0}]
[null,null,null,null,null,{"$f":"F849+الجدول1[[#This Row],[القبض]]-E850","v":0}]
[null,null,null,null,null,{"$f":"F850+الجدول1[[#This Row],[القبض]]-E851","v":0}]
[null,null,null,null,null,{"$f":"F851+الجدول1[[#This Row],[القبض]]-E852","v":0}]
[null,null,null,null,null,{"$f":"F852+الجدول1[[#This Row],[القبض]]-E853","v":0}]
[null,null,null,null,null,{"$f":"F853+الجدول1[[#This Row],[القبض]]-E854","v":0}]
[null,null,null,null,null,{"$f":"F854+الجدول1[[#This Row],[القبض]]-E855","v":0}]
[null,null,null,null,null,{"$f":"F855+الجدول1[[#This Row],[القبض]]-E856","v":0}]
[null,null,null,null,null,{"$f":"F856+الجدول1[[#This Row],[القبض]]-E857","v":0}]
[null,null,null,null,null,{"$f":"F857+الجدول1[[#This Row],[القبض]]-E858","v":0}]
[null,null,null,null,null,{"$f":"F858+الجدول1[[#This Row],[القبض]]-E859","v":0}]
[null,null,null,null,null,{"$f":"F859+الجدول1[[#This Row],[القبض]]-E860","v":0}]
[null,null,null,null,null,{"$f":"F860+الجدول1[[#This Row],[القبض]]-E861","v":0}]
[null,null,null,null,null,{"$f":"F861+الجدول1[[#This Row],[القبض]]-E862","v":0}]
[null,null,null,null,null,{"$f":"F862+الجدول1[[#This Row],[القبض]]-E863","v":0}]
[null,null,null,null,null,{"$f":"F863+الجدول1[[#This Row],[القبض]]-E864","v":0}]
[null,null,null,null,null,{"$f":"F864+الجدول1[[#This Row],[القبض]]-E865","v":0}]
[null,null,null,null,null,{"$f":"F865+الجدول1[[#This Row],[القبض]]-E866","v":0}]
[null,null,null,null,null,{"$f":"F866+الجدول1[[#This Row],[القبض]]-E867","v":0}]
[null,null,null,null,null,{"$f":"F867+الجدول1[[#This Row],[القبض]]-E868","v":0}]
[null,null,null,null,null,{"$f":"F868+الجدول1[[#This Row],[القبض]]-E869","v":0}]
[null,null,null,null,null,{"$f":"F869+الجدول1[[#This Row],[القبض]]-E870","v":0}]
[null,null,null,null,null,{"$f":"F870+الجدول1[[#This Row],[القبض]]-E871","v":0}]
[null,null,null,null,null,{"$f":"F871+الجدول1[[#This Row],[القبض]]-E872","v":0}]
[null,null,null,null,null,{"$f":"F872+الجدول1[[#This Row],[القبض]]-E873","v":0}]
[null,null,null,null,null,{"$f":"F873+الجدول1[[#This Row],[القبض]]-E874","v":0}]
[null,null,null,null,null,{"$f":"F874+الجدول1[[#This Row],[القبض]]-E875","v":0}]
[null,null,null,null,null,{"$f":"F875+الجدول1[[#This Row],[القبض]]-E876","v":0}]
[null,null,null,null,null,{"$f":"F876+الجدول1[[#This Row],[القبض]]-E877","v":0}]
[null,null,null,null,null,{"$f":"F877+الجدول1[[#This Row],[القبض]]-E878","v":0}]
[null,null,null,null,null,{"$f":"F878+الجدول1[[#This Row],[القبض]]-E879","v":0}]
[null,null,null,null,null,{"$f":"F879+الجدول1[[#This Row],[القبض]]-E880","v":0}]
[null,null,null,null,null,{"$f":"F880+الجدول1[[#This Row],[القبض]]-E881","v":0}]
[null,null,null,null,null,{"$f":"F881+الجدول1[[#This Row],[القبض]]-E882","v":0}]
[null,null,null,null,null,{"$f":"F882+الجدول1[[#This Row],[القبض]]-E883","v":0}]
[null,null,null,null,null,{"$f":"F883+الجدول1[[#This Row],[القبض]]-E884","v":0}]
[null,null,null,null,null,{"$f":"F884+الجدول1[[#This Row],[القبض]]-E885","v":0}]
[null,null,null,null,null,{"$f":"F885+الجدول1[[#This Row],[القبض]]-E886","v":0}]
[null,null,null,null,null,{"$f":"F886+الجدول1[[#This Row],[القبض]]-E887","v":0}]
[null,null,null,null,null,{"$f":"F887+الجدول1[[#This Row],[القبض]]-E888","v":0}]
[null,null,null,null,null,{"$f":"F888+الجدول1[[#This Row],[القبض]]-E889","v":0}]
[null,null,null,null,null,{"$f":"F889+الجدول1[[#This Row],[القبض]]-E890","v":0}]
[null,null,null,null,null,{"$f":"F890+الجدول1[[#This Row],[القبض]]-E891","v":0}]
[null,null,null,null,null,{"$f":"F891+الجدول1[[#This Row],[القبض]]-E892","v":0}]
[null,null,null,null,null,{"$f":"F892+الجدول1[[#This Row],[القبض]]-E893","v":0}]
[null,null,null,null,null,{"$f":"F893+الجدول1[[#This Row],[القبض]]-E894","v":0}]
[null,null,null,null,null,{"$f":"F894+الجدول1[[#This Row],[القبض]]-E895","v":0}]
[null,null,null,null,null,{"$f":"F895+الجدول1[[#This Row],[القبض]]-E896","v":0}]
[null,null,null,null,null,{"$f":"F896+الجدول1[[#This Row],[القبض]]-E897","v":0}]
[null,null,null,null,null,{"$f":"F897+الجدول1[[#This Row],[القبض]]-E898","v":0}]
[null,null,null,null,null,{"$f":"F898+الجدول1[[#This Row],[القبض]]-E899","v":0}]
[null,null,null,null,null,{"$f":"F899+الجدول1[[#This Row],[القبض]]-E900","v":0}]
[null,null,null,null,null,{"$f":"F900+الجدول1[[#This Row],[القبض]]-E901","v":0}]
[null,null,null,null,null,{"$f":"F901+الجدول1[[#This Row],[القبض]]-E902","v":0}]
[null,null,null,null,null,{"$f":"F902+الجدول1[[#This Row],[القبض]]-E903","v":0}]
[null,null,null,null,null,{"$f":"F903+الجدول1[[#This Row],[القبض]]-E904","v":0}]
[null,null,null,null,null,{"$f":"F904+الجدول1[[#This Row],[القبض]]-E905","v":0}]
[null,null,null,null,null,{"$f":"F905+الجدول1[[#This Row],[القبض]]-E906","v":0}]
[null,null,null,null,null,{"$f":"F906+الجدول1[[#This Row],[القبض]]-E907","v":0}]
[null,null,null,null,null,{"$f":"F907+الجدول1[[#This Row],[القبض]]-E908","v":0}]
[null,null,null,null,null,{"$f":"F908+الجدول1[[#This Row],[القبض]]-E909","v":0}]
[null,null,null,null,null,{"$f":"F909+الجدول1[[#This Row],[القبض]]-E910","v":0}]
[null,null,null,null,null,{"$f":"F910+الجدول1[[#This Row],[القبض]]-E911","v":0}]
[null,null,null,null,null,{"$f":"F911+الجدول1[[#This Row],[القبض]]-E912","v":0}]
[null,null,null,null,null,{"$f":"F912+الجدول1[[#This Row],[القبض]]-E913","v":0}]
[null,null,null,null,null,{"$f":"F913+الجدول1[[#This Row],[القبض]]-E914","v":0}]
[null,null,null,null,null,{"$f":"F914+الجدول1[[#This Row],[القبض]]-E915","v":0}]
[null,null,null,null,null,{"$f":"F915+الجدول1[[#This Row],[القبض]]-E916","v":0}]
[null,null,null,null,null,{"$f":"F916+الجدول1[[#This Row],[القبض]]-E917","v":0}]
[null,null,null,null,null,{"$f":"F917+الجدول1[[#This Row],[القبض]]-E918","v":0}]
[null,null,null,null,null,{"$f":"F918+الجدول1[[#This Row],[القبض]]-E919","v":0}]
[null,null,null,null,null,{"$f":"F919+الجدول1[[#This Row],[القبض]]-E920","v":0}]
[null,null,null,null,null,{"$f":"F920+الجدول1[[#This Row],[القبض]]-E921","v":0}]
[null,null,null,null,null,{"$f":"F921+الجدول1[[#This Row],[القبض]]-E922","v":0}]
[null,null,null,null,null,{"$f":"F922+الجدول1[[#This Row],[القبض]]-E923","v":0}]
[null,null,null,null,null,{"$f":"F923+الجدول1[[#This Row],[القبض]]-E924","v":0}]
[null,null,null,null,null,{"$f":"F924+الجدول1[[#This Row],[القبض]]-E925","v":0}]
[null,null,null,null,null,{"$f":"F925+الجدول1[[#This Row],[القبض]]-E926","v":0}]
[null,null,null,null,null,{"$f":"F926+الجدول1[[#This Row],[القبض]]-E927","v":0}]
[null,null,null,null,null,{"$f":"F927+الجدول1[[#This Row],[القبض]]-E928","v":0}]
[null,null,null,null,null,{"$f":"F928+الجدول1[[#This Row],[القبض]]-E929","v":0}]
[null,null,null,null,null,{"$f":"F929+الجدول1[[#This Row],[القبض]]-E930","v":0}]
[null,null,null,null,null,{"$f":"F930+الجدول1[[#This Row],[القبض]]-E931","v":0}]
[null,null,null,null,null,{"$f":"F931+الجدول1[[#This Row],[القبض]]-E932","v":0}]
[null,null,null,null,null,{"$f":"F932+الجدول1[[#This Row],[القبض]]-E933","v":0}]
[null,null,null,null,null,{"$f":"F933+الجدول1[[#This Row],[القبض]]-E934","v":0}]
[null,null,null,null,null,{"$f":"F934+الجدول1[[#This Row],[القبض]]-E935","v":0}]
[null,null,null,null,null,{"$f":"F935+الجدول1[[#This Row],[القبض]]-E936","v":0}]
[null,null,null,null,null,{"$f":"F936+الجدول1[[#This Row],[القبض]]-E937","v":0}]
[null,null,null,null,null,{"$f":"F937+الجدول1[[#This Row],[القبض]]-E938","v":0}]
[null,null,null,null,null,{"$f":"F938+الجدول1[[#This Row],[القبض]]-E939","v":0}]
[null,null,null,null,null,{"$f":"F939+الجدول1[[#This Row],[القبض]]-E940","v":0}]
[null,null,null,null,null,{"$f":"F940+الجدول1[[#This Row],[القبض]]-E941","v":0}]
[null,null,null,null,null,{"$f":"F941+الجدول1[[#This Row],[القبض]]-E942","v":0}]
[null,null,null,null,null,{"$f":"F942+الجدول1[[#This Row],[القبض]]-E943","v":0}]
[null,null,null,null,null,{"$f":"F943+الجدول1[[#This Row],[القبض]]-E944","v":0}]
[null,null,null,null,null,{"$f":"F944+الجدول1[[#This Row],[القبض]]-E945","v":0}]
[null,null,null,null,null,{"$f":"F945+الجدول1[[#This Row],[القبض]]-E946","v":0}]
[null,null,null,null,null,{"$f":"F946+الجدول1[[#This Row],[القبض]]-E947","v":0}]
[null,null,null,null,null,{"$f":"F947+الجدول1[[#This Row],[القبض]]-E948","v":0}]
[null,null,null,null,null,{"$f":"F948+الجدول1[[#This Row],[القبض]]-E949","v":0}]
[null,null,null,null,null,{"$f":"F949+الجدول1[[#This Row],[القبض]]-E950","v":0}]
[null,null,null,null,null,{"$f":"F950+الجدول1[[#This Row],[القبض]]-E951","v":0}]
[null,null,null,null,null,{"$f":"F951+الجدول1[[#This Row],[القبض]]-E952","v":0}]
[null,null,null,null,null,{"$f":"F952+الجدول1[[#This Row],[القبض]]-E953","v":0}]
[null,null,null,null,null,{"$f":"F953+الجدول1[[#This Row],[القبض]]-E954","v":0}]
[null,null,null,null,null,{"$f":"F954+الجدول1[[#This Row],[القبض]]-E955","v":0}]
[null,null,null,null,null,{"$f":"F955+الجدول1[[#This Row],[القبض]]-E956","v":0}]
[null,null,null,null,null,{"$f":"F956+الجدول1[[#This Row],[القبض]]-E957","v":0}]
[null,null,null,null,null,{"$f":"F957+الجدول1[[#This Row],[القبض]]-E958","v":0}]
[null,null,null,null,null,{"$f":"F958+الجدول1[[#This Row],[القبض]]-E959","v":0}]
[null,null,null,null,null,{"$f":"F959+الجدول1[[#This Row],[القبض]]-E960","v":0}]
[null,null,null,null,null,{"$f":"F960+الجدول1[[#This Row],[القبض]]-E961","v":0}]
[null,null,null,null,null,{"$f":"F961+الجدول1[[#This Row],[القبض]]-E962","v":0}]
[null,null,null,null,null,{"$f":"F962+الجدول1[[#This Row],[القبض]]-E963","v":0}]
[null,null,null,null,null,{"$f":"F963+الجدول1[[#This Row],[القبض]]-E964","v":0}]
[null,null,null,null,null,{"$f":"F964+الجدول1[[#This Row],[القبض]]-E965","v":0}]
[null,null,null,null,null,{"$f":"F965+الجدول1[[#This Row],[القبض]]-E966","v":0}]
[null,null,null,null,null,{"$f":"F966+الجدول1[[#This Row],[القبض]]-E967","v":0}]
[null,null,null,null,null,{"$f":"F967+الجدول1[[#This Row],[القبض]]-E968","v":0}]
[null,null,null,null,null,{"$f":"F968+الجدول1[[#This Row],[القبض]]-E969","v":0}]
[null,null,null,null,null,{"$f":"F969+الجدول1[[#This Row],[القبض]]-E970","v":0}]
[null,null,null,null,null,{"$f":"F970+الجدول1[[#This Row],[القبض]]-E971","v":0}]
[null,null,null,null,null,{"$f":"F971+الجدول1[[#This Row],[القبض]]-E972","v":0}]
[null,null,null,null,null,{"$f":"F972+الجدول1[[#This Row],[القبض]]-E973","v":0}]
[null,null,null,null,null,{"$f":"F973+الجدول1[[#This Row],[القبض]]-E974","v":0}]
[null,null,null,null,null,{"$f":"F974+الجدول1[[#This Row],[القبض]]-E975","v":0}]
[null,null,null,null,null,{"$f":"F975+الجدول1[[#This Row],[القبض]]-E976","v":0}]
[null,null,null,null,null,{"$f":"F976+الجدول1[[#This Row],[القبض]]-E977","v":0}]
[null,null,null,null,null,{"$f":"F977+الجدول1[[#This Row],[القبض]]-E978","v":0}]
[null,null,null,null,null,{"$f":"F978+الجدول1[[#This Row],[القبض]]-E979","v":0}]
[null,null,null,null,null,{"$f":"F979+الجدول1[[#This Row],[القبض]]-E980","v":0}]
[null,null,null,null,null,{"$f":"F980+الجدول1[[#This Row],[القبض]]-E981","v":0}]
[null,null,null,null,null,{"$f":"F981+الجدول1[[#This Row],[القبض]]-E982","v":0}]
[null,null,null,null,null,{"$f":"F982+الجدول1[[#This Row],[القبض]]-E983","v":0}]
[null,null,null,null,null,{"$f":"F983+الجدول1[[#This Row],[القبض]]-E984","v":0}]
[null,null,null,null,null,{"$f":"F984+الجدول1[[#This Row],[القبض]]-E985","v":0}]
[null,null,null,null,null,{"$f":"F985+الجدول1[[#This Row],[القبض]]-E986","v":0}]
[null,null,null,null,null,{"$f":"F986+الجدول1[[#This Row],[القبض]]-E987","v":0}]
[null,null,null,null,null,{"$f":"F987+الجدول1[[#This Row],[القبض]]-E988","v":0}]
[null,null,null,null,null,{"$f":"F988+الجدول1[[#This Row],[القبض]]-E989","v":0}]
[null,null,null,null,null,{"$f":"F989+الجدول1[[#This Row],[القبض]]-E990","v":0}]
[null,null,null,null,null,{"$f":"F990+الجدول1[[#This Row],[القبض]]-E991","v":0}]
[null,null,null,null,null,{"$f":"F991+الجدول1[[#This Row],[القبض]]-E992","v":0}]
[null,null,null,null,null,{"$f":"F992+الجدول1[[#This Row],[القبض]]-E993","v":0}]
[null,null,null,null,null,{"$f":"F993+الجدول1[[#This Row],[القبض]]-E994","v":0}]
[null,null,null,null,null,{"$f":"F994+الجدول1[[#This Row],[القبض]]-E995","v":0}]
[null,null,null,null,null,{"$f":"F995+الجدول1[[#This Row],[القبض]]-E996","v":0}]
[null,null,null,null,null,{"$f":"F996+الجدول1[[#This Row],[القبض]]-E997","v":0}]
[null,null,null,null,null,{"$f":"F997+الجدول1[[#This Row],[القبض]]-E998","v":0}]
[null,null,null,null,null,{"$f":"F998+الجدول1[[#This Row],[القبض]]-E999","v":0}]
[null,null,null,null,null,{"$f":"F999+الجدول1[[#This Row],[القبض]]-E1000","v":0}]
[null,null,null,null,null,{"$f":"F1000+الجدول1[[#This Row],[القبض]]-E1001","v":0}]
[null,null,null,null,null,{"$f":"F1001+الجدول1[[#This Row],[القبض]]-E1002","v":0}]
[null,null,null,null,null,{"$f":"F1002+الجدول1[[#This Row],[القبض]]-E1003","v":0}]
[null,null,null,null,null,{"$f":"F1003+الجدول1[[#This Row],[القبض]]-E1004","v":0}]
[null,null,null,{"$f":"SUBTOTAL(109,D4:D1004)","v":0},0,{"$f":"الجدول1[[#This Row],[القبض]]+F4-الجدول1[[#This Row],[الصرف]]","v":0}]

{"sheet":"ورقة3","index":2,"n_rows":0,"n_cols":0,"rows_kept":0,"cut":false,"hidden":false,"merged":[]}